Cogmind - Beta 14 @@@ ROGUE MODE // 2024.11.30 @ 22:25:01 Player: Dadrick Result: Heading to fleet! Performance ------------- Evolutions (9) 4500 Regions Visited (38) 7600 Robots Destroyed (278) 1390 Value Destroyed (9381) 9381 Prototype IDs (49) 980 Alien Tech Used (12) 2400 Bonus (14285) 14285 TOTAL SCORE: 40536 Bonus ------- High Alert Combat Kills 773 Follower Combat Kills 1783 Network Hubs Disabled 600 Met Imprinter 300 Met Zhirov 300 Met Warlord at Base 500 MAIN.C Attacked Warlord 500 Warlord Defense Kills 1232 Built Enhanced Grunts 300 A7 Reached Mainframe 300 Met R17 at Cetus 500 Found Hidden Lab 3000 Used Core Reset Matrix 3000 Met Warlord at Research 2000 Win 3000 Friendly Fire -3803 Cogmind --------- Core Integrity 543/1850 Matter 300/300 Energy 98/100 System Corruption 0% Temperature Cool (0) Movement Core (50) Location To Fleet Rendezvous Parts ------- > --- POWER (3) -------- (None) > --- PROPULSION (7) --- (None) > --- UTILITY (12) ----- Advanced Signal Interpreter Advanced Hacking Suite Advanced System Shield Improved Corruption Screen Core Physics Calibrator > --- WEAPON (4) ------- (None) > --- INVENTORY (7) ---- Graphene Brace AEGIS Remote Shield Improved Trap Extractor (6/6 Fire) Enhanced Quantum Rifle Sigix Broadsword Peak State ------------ > --- POWER ------------ Mini Fusion Reactor Improved Fusion Compressor > --- PROPULSION ------- Cooled Nuclear Pulse Thruster Cooled Nuclear Pulse Thruster Cooled Nuclear Pulse Thruster Nuclear Pulse Array Impulse Thruster Array > --- UTILITY ---------- Medium Storage Unit Advanced Weight Redist. System Advanced Signal Interpreter Terrain Scanner Advanced Transmission Jammer Point Defense Array Advanced Hacking Suite Deep Network Scanner Advanced System Shield Improved Corruption Screen Core Physics Calibrator > --- WEAPON ----------- Enhanced Quantum Rifle Sigix Broadsword > --- INVENTORY -------- Light Particle Reactor Graphene Brace AEGIS Remote Shield Improved Trap Extractor Advanced Trap Extractor Transdimensional Reconstructor Integrity Redistributor Microwarp Drive Enhanced Nova Cannon [Rating: 177] Favorites ----------- Power Light Deuterium Engine Engine Light Deuterium Engine Power Core Fission Core Reactor Mini Fusion Reactor Propulsion Light Treads Treads Light Treads Leg Aluminum Leg Wheel Compact Wheel Hover Unit Improved Antigrav System Flight Unit Cooled VTOL Module Utility Advanced Hacking Suite Device Advanced Heat Sink Storage Large Storage Unit Processor Advanced Signal Interpreter Hackware Advanced Hacking Suite Protection Light Armor Plating Artifact Core Physics Calibrator Weapon Improved Assault Rifle Energy Gun Gatling Laser Energy Cannon Beam Cannon Ballistic Gun Improved Assault Rifle Ballistic Cannon Improved Light Cannon Launcher Mini Grenade Launcher Special Weapon Remote Datajack Impact Weapon Power Maul Slashing Weapon Power Sword Piercing Weapon Spear Special Melee Weapon Advanced Datajack Build | -11 -10 -10 -9 -9 -8 -7 -7 -7 -7 -6 -6 -6 -6 -6 -6 -6 -6 -5 -5 -5 -5 -5 -5 -4 -4 -4 -4 -4 -4 -4 -3 -3 -3 -3 -2 -2 -2 -1 ------- Run | Yrd Mat Min Mat Min Mat Fac Low Low Zio Pro Fac Was Fac Ext Cet Arc Hub Fac Was Fac Upp Upp Zhi Pro Fac Was Fac Upp Upp War Pro Res Arm Lab Res Qua Sec Acc Slots Evolved 18 | . . . 2 . 2 2 . . . . 2 . . . . . . 2 . . . . . . 2 . . . . . . 2 . . 2 . . 2 Power 2 | . . . . . . . . . . . . . . . . . . 1 . . . . . . . . . . . . . . . . . . . 1 Propulsion 5 | . . . . . 1 1 . . . . 1 . . . . . . 1 . . . . . . . . . . . . . 1 . . . . . . Utility 10 | . . . 1 . 1 1 . . . . 1 . . . . . . . . . . . . . 2 . . . . . . 1 . . 2 . . 1 Weapon 1 | . . . 1 . . . . . . . . . . . . . . . . . . . . . . . . . . . . . . . . . . . Parts Attached 419 | 7 8 5 26 5 38 27 4 . 5 5 5 2 17 57 16 9 4 31 2 5 2 4 7 5 13 . 11 2 . 4 1 6 10 6 26 8 19 17 Power 46 | 1 1 . 6 1 3 3 . . . 1 1 . 2 4 1 . . 5 . 1 . . 2 . 2 . 3 . . 1 . 1 2 . 3 . . 2 Engine 19 | 1 1 . 6 1 . 1 . . . 1 1 . 2 2 . . . 3 . . . . . . . . . . . . . . . . . . . . Core 15 | . . . . . 3 2 . . . . . . . 2 . . . 2 . 1 . . 1 . 2 . 1 . . . . . . . . . . 1 Reactor 12 | . . . . . . . . . . . . . . . 1 . . . . . . . 1 . . . 2 . . 1 . 1 2 . 3 . . 1 Propulsion 87 | 2 . 2 7 . 12 4 . . 1 1 2 2 4 16 2 1 2 5 . 3 . 1 . 1 3 . . . . . . 2 2 . 3 1 6 2 Treads 36 | 2 . 2 4 . 7 . . . . . . . . 16 2 1 2 . . . . . . . . . . . . . . . . . . . . . Leg 1 | . . . 1 . . . . . . . . . . . . . . . . . . . . . . . . . . . . . . . . . . . Wheel 5 | . . . 2 . 2 . . . 1 . . . . . . . . . . . . . . . . . . . . . . . . . . . . . Hover 1 | . . . . . . . . . . . . . . . . . . . . . . . . . . . . . . . . . . . . . . 1 Flight 44 | . . . . . 3 4 . . . 1 2 2 4 . . . . 5 . 3 . 1 . 1 3 . . . . . . 2 2 . 3 1 6 1 Utility 158 | 2 4 3 6 2 6 12 3 . 4 . 1 . 5 21 7 3 2 10 2 1 1 . 5 1 7 . 8 2 . 2 1 2 3 3 12 4 5 8 Device 97 | 1 2 3 2 . . 6 3 . 1 . 1 . 3 14 2 3 2 5 2 1 . . 3 1 6 . 7 2 . 2 1 1 1 2 7 4 2 7 Storage 8 | 1 2 . 1 . . . . . . . . . . 2 . . . . . . . . 1 . . . . . . . . . . . 1 . . . Processor 14 | . . . . . 1 4 . . 1 . . . 1 . . . . 2 . . 1 . . . . . . . . . . . 1 . 3 . . . Hackware 14 | . . . . . 2 2 . . 2 . . . 1 . 1 . . . . . . . 1 . 1 . . . . . . 1 1 1 1 . . . Protection 21 | . . . 3 2 3 . . . . . . . . 5 4 . . 3 . . . . . . . . 1 . . . . . . . . . . . Artifact 4 | . . . . . . . . . . . . . . . . . . . . . . . . . . . . . . . . . . . . . 3 1 Weapon 128 | 2 3 . 7 2 17 8 1 . . 3 1 . 6 16 6 5 . 11 . . 1 3 . 3 1 . . . . 1 . 1 3 3 8 3 8 5 Energy Gun 24 | 2 . . . . 1 2 . . . 1 . . . 6 3 2 . 2 . . . . . . . . . . . . . . . 2 . . 2 1 Energy Cannon 23 | . 2 . 2 . . . . . . . . . . . . . . . . . . . . 1 . . . . . . . 1 3 1 4 2 5 2 Ballistic Gun 24 | . 1 . 4 1 9 . . . . 1 . . . . . 1 . 2 . . . 1 . 1 . . . . . . . . . . 2 1 . . Ballistic Cannon 4 | . . . . . 2 . . . . . . . . . . . . 1 . . . 1 . . . . . . . . . . . . . . . . Launcher 15 | . . . . 1 3 2 . . . . . . 2 4 1 . . 1 . . . . . . . . . . . 1 . . . . . . . . Special Weapon 2 | . . . . . . 1 . . . . . . . . . . . 1 . . . . . . . . . . . . . . . . . . . . Impact Weapon 7 | . . . 1 . . 1 . . . . 1 . 2 . . . . . . . . 1 . 1 . . . . . . . . . . . . . . Slashing Weapon 21 | . . . . . 2 1 . . . 1 . . 2 3 2 1 . 4 . . . . . . . . . . . . . . . . 2 . 1 2 Piercing Weapon 1 | . . . . . . 1 . . . . . . . . . . . . . . . . . . . . . . . . . . . . . . . . Special Melee Weapon 7 | . . . . . . . 1 . . . . . . 3 . 1 . . . . 1 . . . 1 . . . . . . . . . . . . . Unidentified Prototypes 22 | . . . 1 . . 1 . . . . . . 1 . 4 . . 1 . . . . 3 . . . 1 . . . . . 1 7 1 . 1 . Corrupted Parts 3 | . . . . . . . . . . . . 1 . . 2 . . . . . . . . . . . . . . . . . . . . . . . System Corruption 7 | . . . . . . . . . . . . 2 . . 5 . . . . . . . . . . . . . . . . . . . . . . . Parts Lost 125 | . . 2 10 1 22 11 . 1 . . 5 . 3 9 3 . 3 11 . 2 1 . . 2 . . 2 . . . 5 6 1 . 1 1 5 18 Power 20 | . . . 2 . 3 1 . . . . 1 . 1 2 . . . 3 . 1 . . . . . . 1 . . . . 2 . . . . . 3 Propulsion 45 | . . 2 2 . 8 5 . . . . 2 . 1 4 2 . . 5 . . 1 . . 1 . . . . . . . 3 . . . 1 2 6 Utility 38 | . . . 3 1 4 3 . . . . 1 . 1 3 1 . 1 2 . . . . . 1 . . 1 . . . 5 . 1 . 1 . 1 8 Weapon 22 | . . . 3 . 7 2 . 1 . . 1 . . . . . 2 1 . 1 . . . . . . . . . . . 1 . . . . 2 1 Highest Loss Streak 18 | . . 2 5 1 7 7 . 1 . . 3 . 1 4 3 . 3 5 . 2 1 . . 2 . . 2 . . . 4 7 1 . 1 1 2 18 To Critical Strikes 2 | . . . . . . . . . . . . . . . . . . . . . . . . . . . . . . . . . . . . . . 2 Average Slot Usage (%) 84 | . 100 100 94 99 89 72 50 51 52 75 80 79 91 94 93 84 85 65 58 64 70 70 76 82 88 89 88 89 89 89 81 57 67 71 80 81 72 58 Engine 4 | . 14 14 10 11 6 . . . . 7 6 6 5 1 4 . . . . . . . . . . . . . . . . . . . . . . . Core 1 | . . . . . 1 4 . . . . . . . 4 . . . 1 5 5 5 5 2 5 5 5 3 . . . . . . . . . . 2 Reactor 1 | . . . . . . . . . . . . . . . 1 6 6 1 . . . . 2 5 5 5 6 10 10 10 10 7 8 9 8 8 6 1 Treads 11 | . 28 28 13 11 15 . . . . . . . . 26 27 20 20 8 . . . . . . . . . . . . . . . . . . . . Wheel 2 | . . . 8 11 6 . . . 6 7 6 6 1 . . . . . . . . . . . . . . . . . . . . . . . . . Flight 9 | . . . . . 3 19 7 7 7 15 15 19 27 3 . . . 5 11 21 28 24 29 26 22 21 21 21 21 21 21 18 17 18 16 15 18 13 Device 12 | . 14 14 11 11 6 8 4 7 11 7 8 6 12 12 10 4 6 9 11 15 11 11 12 17 25 26 25 26 26 26 23 6 13 13 16 12 7 10 Storage 4 | . 14 14 11 11 8 . . . . . . . . 4 6 6 6 3 . . . . . . . . . . . . . . . . 1 4 4 2 Processor 5 | . . . . . . 6 15 15 7 7 6 6 6 6 6 6 6 7 17 12 17 17 11 5 5 5 5 5 5 5 5 4 6 9 9 12 9 7 Hackware 8 | . . . . . 9 14 15 15 18 23 20 20 17 6 8 13 12 5 5 5 5 5 7 11 10 10 10 10 10 10 10 12 16 14 16 16 14 10 Protection 3 | . . . 8 10 6 . . . . . . . . 6 5 6 6 4 . . . . . . . . . . . . . . . . . . . . Energy Gun 3 | . 7 . . . 1 1 . . . 1 . . . 12 18 13 12 2 . . . . . . . . . . . . . . . . 4 4 2 1 Energy Cannon 3 | . 18 28 5 . . . . . . . . . . . . . . . . . . . . . 5 5 5 5 5 3 . . . 4 . . 1 . Ballistic Gun 6 | . 2 . 24 32 20 . . . . . 5 . . . . . 6 3 . . . 2 . 1 . . . . . . . . . . 1 2 . . Impact Weapon 1 | . . . . . . . . . . . 4 6 5 . . . . . . . . . 5 5 5 5 5 5 5 5 5 4 3 . . . . . Slashing Weapon 2 | . . . . . . 4 . . . 5 6 6 11 5 . 5 . 6 5 1 . . . . . . . . . . . . . . 3 4 . . Peak Build Rating 177 | 7 10 10 21 22 30 44 28 25 25 40 46 54 68 59 98 99 102 105 53 75 79 78 81 86 120 120 126 121 121 121 121 100 138 149 175 167 174 177 Average Rating 58 | 5 9 8 17 21 22 31 23 24 24 36 43 45 59 52 69 95 100 77 53 64 71 68 75 78 111 120 119 118 121 120 111 89 113 129 165 162 151 124 On Entrance 72 | . 7 10 8 21 22 30 21 25 21 25 40 39 54 59 54 97 99 88 53 53 75 64 78 80 86 120 120 118 121 121 121 93 78 127 148 165 155 138 Naked Turns . | . . . . . . . . . . . . . . . . . . . . . . . . . . . . . . . . . . . . . . . Heaviest Build 65 | 11 32 32 58 62 62 15 5 4 3 11 14 9 20 56 60 62 63 65 9 11 9 20 31 39 45 45 56 48 46 48 43 28 32 38 53 53 48 44 Greatest Support 196 | 40 40 40 40 16 60 20 5 5 5 11 22 30 29 106 196 183 190 190 26 39 26 25 38 47 56 56 56 56 56 56 56 47 53 53 53 54 53 56 Greatest Overweight (x) 16 | . . . 3 3 16 . . . . . . . . 1 . . . 4 . 1 . . 1 . . . . . . . . . . . . . 1 6 Average Overweight (x) . | . . . 1 3 2 . . . . . . . . . . . . . . . . . . . . . . . . . . . . . . . . . Largest Inventory Capacity 20 | 8 15 15 20 20 20 5 5 5 5 5 5 5 5 15 15 15 15 15 5 5 5 5 5 5 5 5 5 5 5 5 5 5 5 5 10 10 12 12 Average Capacity 10 | 6 12 15 15 20 18 5 5 5 5 5 5 5 5 11 15 15 15 12 5 5 5 5 5 5 5 5 5 5 5 5 5 5 5 5 6 10 10 11 Most Carried 20 | 6 10 11 20 20 20 5 5 5 5 5 5 4 5 15 15 15 15 15 5 5 5 5 5 5 5 5 5 5 5 5 5 5 5 5 9 10 12 12 Average Carried 9 | 3 9 9 14 19 16 4 4 5 4 4 4 4 4 10 14 14 14 11 5 4 4 5 4 4 4 5 4 4 5 5 5 4 4 3 6 9 9 10 Final Capacity 20 | 8 15 15 20 20 5 5 5 5 5 5 5 5 5 15 15 15 15 5 5 5 5 5 5 5 5 5 5 5 5 5 5 5 5 5 10 10 12 7 Final Carried 20 | 6 10 11 20 19 5 5 5 5 5 5 4 4 5 15 15 15 15 5 5 5 5 5 5 5 5 5 5 5 5 5 5 5 3 5 9 10 10 6 Class Distribution -------------------- 22% | Scavenger-Tank 21% | Hacker-Sprinter 12% | Mutant 10% | Hacker-Mutant 8% | Scavenger-Mutant 3% | Commander-Mutant Dominant Class ---------------- Mutant | -10/Materials Mutant | -10/Mines Scavenger-Tank | -9/Materials Scavenger-Tank | -9/Mines Scavenger-Tank | -8/Materials Hacker-Mutant | -7/Factory Hacker-Mutant | -7/Lower Caves Hacker-Mutant | -7/Lower Caves Hacker-Mutant | -7/Zion Derelict-Mutant | -6/Proximity Caves Hacker-Mutant | -6/Factory Hacker-Mutant | -6/Waste Hacker-Sprinter | -6/Factory Scavenger-Tank | -6/Extension Scavenger-Tank | -6/Cetus Commander-Mutant | -6/Archives Scavenger-Gunner | -6/Hub_04(d) Scavenger-Mutant | -5/Factory Scavenger-Sprinter | -5/Waste Machinist-Sprinter | -5/Factory Machinist-Sprinter | -5/Upper Caves Sprinter | -5/Upper Caves Sprinter | -5/Zhirov Hacker-Sprinter | -4/Proximity Caves Hacker-Sprinter | -4/Factory Hacker-Sprinter | -4/Waste Hacker-Sprinter | -4/Factory Hacker-Sprinter | -4/Upper Caves Hacker-Sprinter | -4/Upper Caves Hacker-Sprinter | -4/Warlord Hacker-Sprinter | -3/Proximity Caves Hacker-Sprinter | -3/Research Hacker-Sprinter | -3/Armory Hacker-Sprinter | -3/Lab Wizard-Sprinter | -2/Research Hacker-Mutant | -2/Quarantine Hacker-Sprinter | -2/Section 7 Alien-Sprinter | -1/Access Resources | -11 -10 -10 -9 -9 -8 -7 -7 -7 -7 -6 -6 -6 -6 -6 -6 -6 -6 -5 -5 -5 -5 -5 -5 -4 -4 -4 -4 -4 -4 -4 -3 -3 -3 -3 -2 -2 -2 -1 ----------- Run | Yrd Mat Min Mat Min Mat Fac Low Low Zio Pro Fac Was Fac Ext Cet Arc Hub Fac Was Fac Upp Upp Zhi Pro Fac Was Fac Upp Upp War Pro Res Arm Lab Res Qua Sec Acc Matter Collected 6580 | 270 78 26 691 106 839 502 38 47 20 78 20 . 343 963 324 175 93 360 . 63 30 27 . 160 77 . 90 38 65 131 23 35 50 . 471 . . 347 Remotely . | . . . . . . . . . . . . . . . . . . . . . . . . . . . . . . . . . . . . . . . Salvage Created 11640 | 118 421 153 1802 188 1114 708 . . . . 140 . 604 1781 512 367 1063 558 . . . . . 8 185 . 259 . . 738 40 35 31 . 599 49 . 167 Parts 536 | 8 34 17 113 9 52 37 . . . . 2 . 22 56 22 15 48 24 . . . . . . 8 . 13 . . 20 2 . . . 22 3 . 9 Haulers Intercepted 22 | . 2 . 5 . 2 4 . . . . 1 . 1 . . . 2 . . . . . . . 1 . 1 . . . . . . . 3 . . . Recyclers Shooed 6 | . 1 . 1 . 3 . . . . . . . . 1 . . . . . . . . . . . . . . . . . . . . . . . . Parts Field Recycled . | . . . . . . . . . . . . . . . . . . . . . . . . . . . . . . . . . . . . . . . Retrieved Matter . | . . . . . . . . . . . . . . . . . . . . . . . . . . . . . . . . . . . . . . . Parts Self-Destructed 24 | . . . . . . . 1 11 . 7 . . . . . . . . . . . . . . . . . 1 3 . 1 . . . . . . . Prevented 4 | . . . . . . . 2 . . . . . . . . . . . . . . . . . . . . 1 . . 1 . . . . . . . Kills | -11 -10 -10 -9 -9 -8 -7 -7 -7 -7 -6 -6 -6 -6 -6 -6 -6 -6 -5 -5 -5 -5 -5 -5 -4 -4 -4 -4 -4 -4 -4 -3 -3 -3 -3 -2 -2 -2 -1 ------- Run | Yrd Mat Min Mat Min Mat Fac Low Low Zio Pro Fac Was Fac Ext Cet Arc Hub Fac Was Fac Upp Upp Zhi Pro Fac Was Fac Upp Upp War Pro Res Arm Lab Res Qua Sec Acc Combat Hostiles Destroyed 156 | . 10 5 34 4 23 6 . . . . 1 . 4 27 6 1 7 6 . . . . . 1 . . 7 . . 10 1 . . . 1 . . 2 Melee 15 | . . . . . . 1 . . . . 1 . 1 6 . . . 2 . . . . . 1 . . . . . . . . . . 1 . . 2 Guns 59 | . 5 . 18 2 16 . . . . . . . . 11 1 . 6 . . . . . . . . . . . . . . . . . . . . . Cannons 27 | . 5 5 14 . 2 . . . . . . . . . . . . 1 . . . . . . . . . . . . . . . . . . . . AOE 36 | . . . . 2 5 5 . . . . . . 3 7 . . 1 1 . . . . . . . . 7 . . 4 1 . . . . . . . Classes Destroyed 20 | 2 4 2 3 . 4 1 . . . . . . . 1 . . . . . . . . . 1 . . . . . 1 . . . . . . . 1 Worker 23 | . . . 4 1 1 4 . . . . . . 2 . . . 8 . . . . . . . . . 1 . . . . . . . 2 . . . Builder 15 | . . 1 2 . 1 1 . . . . . . . 3 . . 2 1 . . . . . . . . 2 . . . . . . . . 1 . 1 Tunneler 5 | 3 . 1 . . . 1 . . . . . . . . . . . . . . . . . . . . . . . . . . . . . . . . Hauler 22 | . 2 . 5 . 2 4 . . . . 1 . 1 . . . 2 . . . . . . . 1 . 1 . . . . . . . 3 . . . Recycler 16 | 1 . . 1 . 1 4 . . . . . . 2 4 . . 1 1 . . . . . . . . . . . . . . . . 1 . . . Operator 14 | . . . 1 . 1 1 . . . . . . . . . 9 . . . . . . . . 1 . . . . . . . . . 1 . . . Drone 1 | . . . . . . . . . . . . . . . . . . . . . . . . 1 . . . . . . . . . . . . . . Watcher 24 | . 3 . 4 . 1 2 . . . . . . 4 1 1 . . 1 . . . . . . 2 . 1 . . . . 1 1 . 1 1 . . Swarmer 34 | . 6 2 10 . 2 2 . . . . 1 . 3 3 . . . . . . . . . . . . 4 . . . 1 . . . . . . . Saboteur 1 | . . . . . . . . . . . . . . . . . . . . . . . . . . . . . . 1 . . . . . . . . Grunt 67 | . 4 2 15 4 12 2 . . . . . . . 11 . . 3 4 . . . . . . . . 1 . . 8 . . . . 1 . . . Brawler 1 | . . . . . 1 . . . . . . . . . . . . . . . . . . . . . . . . . . . . . . . . . Duelist 3 | . . . . . 1 . . . . . . . . 1 . . . 1 . . . . . . . . . . . . . . . . . . . . Protector 2 | . . . . . . . . . . . . . . 1 . . . . . . . . . . . . . . . 1 . . . . . . . . Sentry 26 | . . . 9 . 4 . . . . . . . . 9 . 1 3 . . . . . . . . . . . . . . . . . . . . . Specialist 2 | . . . . . 2 . . . . . . . . . . . . . . . . . . . . . . . . . . . . . . . . . Hunter 5 | . . . . . 1 . . . . . . . . 1 . . 1 . . . . . . . . . 2 . . . . . . . . . . . Programmer 6 | . . . . . . 2 . . . . . . 1 1 . . . 1 . . . . . . . . . . . . . . . . . . . 1 Cetus Guard 6 | . . . . . . . . . . . . . . . 6 . . . . . . . . . . . . . . . . . . . . . . . Enhanced Grunt 1 | . . . . . . . . . . . . . . . . . 1 . . . . . . . . . . . . . . . . . . . . . Assembled 1 | . . 1 . . . . . . . . . . . . . . . . . . . . . . . . . . . . . . . . . . . . Guerrilla 1 | . . . . . . . . . . . . . . . . . 1 . . . . . . . . . . . . . . . . . . . . . Mutant 1 | . . . . . . . . . . . . . . . . . . . . . . . . . . . . . . . . . . . . . . 1 Best Kill Streak 12 | 2 4 4 6 3 12 6 . . . . 2 . 5 5 5 3 12 4 . . . . . 1 1 . 11 . . 9 1 1 1 . 2 1 . 2 Combat Bots Only 10 | . 3 3 5 2 10 2 . . . . 1 . 3 4 4 1 3 3 . . . . . 1 . . 7 . . 9 1 . . . 1 . . 2 Max Kills in Single Turn 11 | 2 2 1 2 3 2 5 . . . . 1 . 3 3 1 1 10 1 . . . . . 1 1 . 11 . . 2 1 1 1 . 1 1 . 1 Gunslinging 1 | . 1 . 1 . . . . . . . . . . . . . . . . . . . . . . . . . . . . . . . . . . . Exploded 7 | . . . . 2 1 1 . . . . . . 3 3 . . 1 1 . . . . . . . . 7 . . 1 1 . . . . . . . Melee 1 | . . . . . . 1 . . . . 1 . 1 1 . . . 1 . . . . . 1 . . . . . . . . . . 1 . . 1 Uniques/NPCs Destroyed 2 | . . . . . . . . . . . . . . . 2 . . . . . . . . . . . . . . . . . . . . . . . Revision 17 (-6/Cetus) A7 (-6/Cetus) Combat | -11 -10 -10 -9 -9 -8 -7 -7 -7 -7 -6 -6 -6 -6 -6 -6 -6 -6 -5 -5 -5 -5 -5 -5 -4 -4 -4 -4 -4 -4 -4 -3 -3 -3 -3 -2 -2 -2 -1 -------- Run | Yrd Mat Min Mat Min Mat Fac Low Low Zio Pro Fac Was Fac Ext Cet Arc Hub Fac Was Fac Upp Upp Zhi Pro Fac Was Fac Upp Upp War Pro Res Arm Lab Res Qua Sec Acc Hostile Shots Fired 2079 | . 52 32 142 14 323 142 2 19 . 3 71 . 44 371 32 14 108 148 . 30 5 8 . 8 24 . 25 5 . 12 28 49 6 . 67 12 95 188 Missed 914 | . 15 10 46 6 121 79 . 11 . 1 39 . 28 167 10 3 30 40 . 20 2 8 . 5 22 . 20 4 . 6 16 28 2 . 43 7 55 70 Damage Taken 20319 | . 334 296 1275 119 3218 1050 28 140 . 20 469 . 199 2071 493 261 1557 2271 . 181 89 . . 71 39 . 144 75 . 116 637 500 120 . 454 200 1220 2672 Core 4782 | . 59 56 137 15 539 440 18 108 . 20 59 . 51 460 15 23 193 402 . 37 31 . . . 39 . . . . 17 185 61 . . 43 43 497 1234 Absorbed by Shields 423 | . . . . . . 48 . . . . . . . 247 128 . . . . . . . . . . . . . . . . . . . . . . . Ignored by Resistances 113 | . . . . . . . . . . . . . . . . . . . . . . . . . . . . . . . . . . . . . 21 92 Regen/Repaired (Parts) 401 | . . . . . . 35 . . . . . . . . 8 111 62 149 . . . . . . . . . . . 14 . . . . . . . 22 Core Remaining (%) 50 | 100 . 54 . 62 2 . . . . 16 . . . . . . 5 . . . . . . 53 . . . . . . 79 . . 89 . . 65 29 Volleys Fired 445 | 11 37 15 96 7 91 11 . . . . . . 1 46 10 5 15 23 . . . . . . 1 . 1 1 5 15 3 2 2 4 13 7 16 7 Largest 3 | 2 2 2 3 3 3 1 . . . . . . 1 3 3 3 3 2 . . . . . . 1 . 1 1 1 1 1 1 1 1 1 1 1 1 Hottest 241 | 80 120 120 120 69 95 36 . . . . . . 50 241 240 240 193 116 . . . . . . 105 . 105 105 105 105 43 105 105 105 120 120 120 120 Shots Fired 915 | 22 74 30 241 13 222 11 . . . . . . 1 120 18 15 44 27 . . . . . . 1 . 1 1 5 15 3 2 2 4 13 7 16 7 Gun 631 | 22 40 . 147 9 195 . . . . . . . . 114 12 15 44 15 . . . . . . . . . . . . . . . . 8 4 . 6 Cannon 229 | . 34 30 94 . 18 . . . . . . . . . . . . 8 . . . . . . 1 . 1 1 5 4 . 2 2 4 5 3 16 1 Launcher 55 | . . . . 4 9 11 . . . . . . 1 6 6 . . 4 . . . . . . . . . . . 11 3 . . . . . . . Special . | . . . . . . . . . . . . . . . . . . . . . . . . . . . . . . . . . . . . . . . Kinetic 404 | . 4 . 147 9 206 . . . . . . . . . . . 15 12 . . . . . . . . . . . . . . . . 8 3 . . Thermal 455 | 22 70 30 94 . 7 . . . . . . . . 114 12 15 29 11 . . . . . . 1 . 1 1 5 4 . 2 2 4 5 3 16 7 Explosive 31 | . . . . 4 9 11 . . . . . . 1 6 . . . . . . . . . . . . . . . . . . . . . . . . Electromagnetic 25 | . . . . . . . . . . . . . . . 6 . . 4 . . . . . . . . . . . 11 3 . . . . 1 . . Robot Hit Streak 26 | 3 6 4 26 12 20 3 . . . . . . . 19 4 6 8 7 . . . . . . . . . . . 5 7 . . . . . 8 13 Robot Miss Streak 16 | 3 6 4 3 1 3 1 . . . . . . . 16 3 4 4 4 . . . . . . . . . . . . . . . . . . . . Penetration Max 1 | . . . . . . . . . . . . . . . . . 1 . . . . . . . . . . . . . . . . . . . . . Secondary Targets 14 | . 2 . 3 . 7 . . . . . . . . 2 . . . . . . . . . . . . . . . . . . . . . . . . Max Gunslinging Chain 1 | . 1 . 1 . 1 . . . . . . . . 1 . . . . . . . . . . . . . . . . . . . . . . . . Shots Hit Robots 747 | 11 40 14 162 10 159 42 . . . 1 7 . 22 130 21 26 30 30 . . 2 . . 1 5 . 1 . . 3 2 1 1 . 15 2 1 8 Core Hits 470 | 5 20 9 64 11 67 25 . . . . 3 . 16 122 16 12 46 13 . . . . . . 2 . 7 . . 16 4 . . . 9 1 . 2 Critical Kills 2 | . . . . . 1 . . . . . . . . . . . 1 . . . . . . . . . . . . . . . . . . . . . Critical Parts Destroyed 4 | . 1 . . . 1 . . . . . . . . . . . . . . . . . . . . . 1 . . . . 1 . . . . . . Critical Strikes 28 | . 1 . . . 2 4 . . . 1 1 . 3 8 1 . 1 1 . . . . . . . . 1 . . . . 1 . . 3 . . . Burn 4 | . . . . . . . . . . . . . . 4 . . . . . . . . . . . . . . . . . . . . . . . . Destroy 4 | . 1 . . . 2 . . . . . . . . . . . 1 . . . . . . . . . . . . . . . . . . . . . Smash 2 | . . . . . . . . . . . . . . . . . . . . . . . . . . . 1 . . . . 1 . . . . . . Sever 16 | . . . . . . 2 . . . 1 1 . 3 4 1 . . 1 . . . . . . . . . . . . . . . . 3 . . . Impale 2 | . . . . . . 2 . . . . . . . . . . . . . . . . . . . . . . . . . . . . . . . . Melee Attacks 390 | . . . 1 . 4 63 2 13 . 7 19 . 77 51 10 15 . 22 . . 2 . . 2 19 . 5 2 1 13 6 6 17 . 21 7 2 3 Impact 93 | . . . 1 . . . . . . . 5 . 16 . . . . . . . . . . 2 19 . 5 2 1 13 6 6 17 . . . . . Slashing 238 | . . . . . 4 40 . . . 7 14 . 61 34 10 13 . 22 . . . . . . . . . . . . . . . . 21 7 2 3 Piercing 38 | . . . . . . 23 2 13 . . . . . . . . . . . . . . . . . . . . . . . . . . . . . . Sneak Attacks 73 | . . . . . 1 8 . . . . 1 . 5 19 10 13 . 1 . . 2 . . 1 2 . 1 . . . . . . . 8 1 . . Combat Hostiles 2 | . . . . . . . . . . . . . . . . . . . . . . . . 1 . . . . . . . . . . 1 . . . Follow-up Attacks 23 | . . . . . . 2 . . . . 2 . 8 9 . . . 2 . . . . . . . . . . . . . . . . . . . . Damage Inflicted 30087 | 155 573 302 2792 517 3510 2826 . . . 37 297 . 1351 5219 1487 1512 1984 1216 . . . . . 115 435 . 1976 . . 1079 102 45 58 . 1840 203 40 416 Guns 8208 | 155 285 . 1603 101 2184 . . . . . . . . 2206 222 275 821 200 . . . . . . . . . . . . . . . . . . . 156 Cannons 2267 | . 267 265 1175 . 339 . . . . . . . . . . . . 181 . . . . . . . . . . . . . . . . . . 40 . Explosions 9553 | . . . . 415 876 1307 . . . . . . 184 1681 687 . 1144 202 . . . . . . . . 1876 . . 1079 102 . . . . . . . Melee 9924 | . . . . . 106 1519 . . . 37 297 . 1167 1299 578 1237 . 633 . . . . . 115 435 . 100 . . . . 42 58 . 1840 203 . 258 Ramming 135 | . 21 37 14 1 5 . . . . . . . . 33 . . 19 . . . . . . . . . . . . . . 3 . . . . . 2 Kinetic 4614 | . 17 . 1603 101 2451 . . . . . . . . . . . 254 188 . . . . . . . . . . . . . . . . . . . . Thermal 8366 | 155 535 265 1175 . 72 565 . . . . . . . 2206 222 275 567 193 . . . . . . . . 1876 . . 64 . . . . . . 40 156 Explosive 3898 | . . . . 415 876 742 . . . . . . 184 1681 . . . . . . . . . . . . . . . . . . . . . . . . Electromagnetic 3150 | . . . . . . . . . . . . . . . 687 . 1144 202 . . . . . . . . . . . 1015 102 . . . . . . . Impact 1110 | . . . . . . . . . . . 62 . 298 . . . . . . . . . . 115 435 . 100 . . . . 42 58 . . . . . Slashing 8137 | . . . . . 106 842 . . . 37 235 . 869 1299 578 1237 . 633 . . . . . . . . . . . . . . . . 1840 203 . 258 Piercing 677 | . . . . . . 677 . . . . . . . . . . . . . . . . . . . . . . . . . . . . . . . . Highest Corruption 21 | . . . . . 2 3 3 3 3 . . 12 14 16 21 21 16 9 9 9 9 9 9 9 . 8 8 8 8 8 . 4 4 4 . . . . Average Corruption 10 | . . . . . 2 2 3 3 3 . . 11 13 15 17 12 8 6 9 9 9 9 9 9 . 8 8 8 8 8 . 1 4 4 . . . . Corruption Purged 13 | . . . . . . . . . . . . . . . . 13 . . . . . . . . . . . . . . . . . . . . . . Corruption Blocked 7 | . . . . . . . . . . . . . . . . . . 1 . . . . . . . . . . . . . . . . . . 2 4 Effects 296 | . . . . . 8 8 2 8 2 . . 2 46 107 19 23 10 6 1 6 8 5 1 3 . . 7 9 2 1 . 2 6 4 . . . . Message Errors 73 | . . . . . 1 3 . 2 1 . . . 11 20 3 7 4 1 . 2 3 3 . 1 . . 3 3 1 1 . . 2 1 . . . . Matter Fused 79 | . . . . . 2 . 2 1 1 . . . 15 33 5 7 1 1 . 2 2 . 1 1 . . . 1 1 . . 1 . 2 . . . . Heat Flow Errors 33 | . . . . . 2 1 . 1 . . . . 6 11 3 1 1 2 . 2 . . . . . . 1 1 . . . . 1 . . . . . Energy Discharges 29 | . . . . . 2 2 . 2 . . . . 2 8 5 4 . . . . . . . . . . 1 2 . . . . . 1 . . . . Parts Rejected 2 | . . . . . . . . . . . . . . 1 . . . 1 . . . . . . . . . . . . . . . . . . . . Parts Fused 3 | . . . . . . . . . . . . . . 1 . 1 1 . . . . . . . . . . . . . . . . . . . . . Data Loss (minor) 42 | . . . . . . 1 . 2 . . . . 8 15 2 1 2 . 1 . 2 1 . 1 . . 2 2 . . . . 2 . . . . . Data Loss (major) 13 | . . . . . . 1 . . . . . . . 7 . 1 . 1 . . 1 . . . . . . . . . . 1 1 . . . . . Misfires 5 | . . . . . 1 . . . . . . . . 3 . . 1 . . . . . . . . . . . . . . . . . . . . . Alerts 8 | . . . . . . . . . . . . 1 1 3 1 1 . . . . . 1 . . . . . . . . . . . . . . . . Misdirections 7 | . . . . . . . . . . . . 1 3 3 . . . . . . . . . . . . . . . . . . . . . . . . Weapon Failures 2 | . . . . . . . . . . . . . . 2 . . . . . . . . . . . . . . . . . . . . . . . . Overload Shots . | . . . . . . . . . . . . . . . . . . . . . . . . . . . . . . . . . . . . . . . Overflow Damage 3051 | . . . 59 19 28 514 . . . . 40 . 212 101 77 553 47 29 . . . . . 85 163 . 588 . . 5 . 42 34 . 227 100 . 128 Projectiles 12 | . . . 12 . . . . . . . . . . . . . . . . . . . . . . . . . . . . . . . . . . . Explosions 865 | . . . 47 19 28 227 . . . . . . 1 3 . . 47 . . . . . . . . . 488 . . 5 . . . . . . . . Melee 2174 | . . . . . . 287 . . . . 40 . 211 98 77 553 . 29 . . . . . 85 163 . 100 . . . . 42 34 . 227 100 . 128 Knockbacks 5 | . . . . . . . . . . . . . 1 . . . . 3 . . . . . . 1 . . . . . . . . . . . . . Impact 2 | . . . . . . . . . . . . . 1 . . . . . . . . . . . 1 . . . . . . . . . . . . . Kinetic 3 | . . . . . . . . . . . . . . . . . . 3 . . . . . . . . . . . . . . . . . . . . Secondary . | . . . . . . . . . . . . . . . . . . . . . . . . . . . . . . . . . . . . . . . Self-Inflicted Damage 565 | . . . 97 25 135 182 . . . . . . . 26 . . 98 . . . . . . . . . . . . . . 1 . . . . . 1 Shots 13 | . . . 1 1 5 4 . . . . . . . 1 . . 1 . . . . . . . . . . . . . . . . . . . . . Rammed 24 | . 2 6 3 1 1 . . . . . . . . 3 . . 5 . . . . . . . . . . . . . . 1 . . . . . 2 Targets Rammed 25 | . 2 6 3 1 1 . . . . . . . . 4 . . 5 . . . . . . . . . . . . . . 1 . . . . . 2 Kicked . | . . . . . . . . . . . . . . . . . . . . . . . . . . . . . . . . . . . . . . . Crushed 1 | . . . . . . . . . . . . . . 1 . . . . . . . . . . . . . . . . . . . . . . . . Highest Temperature 479 | 126 150 240 114 51 237 128 . 105 . 10 . . 241 479 220 332 190 182 . 146 . . 29 83 85 . 263 377 223 339 37 124 262 80 176 . 389 8 Average Temperature 68 | 49 48 103 33 22 65 51 . 59 . 10 . . 103 93 77 127 62 46 . 69 . . 15 33 25 . 69 109 55 108 4 52 77 41 78 . 81 8 Received Heat Transfer 3916 | . 75 123 372 54 1269 288 . 45 . 27 . . 42 459 58 63 324 459 . . 12 . . 18 . . . . . 9 9 39 . . 9 27 81 54 Effects 8 | . . . . . 3 . . . . . . . . . . . . . . . . . . . . . . 1 . 3 . . 1 . . . . . Energy Bleed 1 | . . . . . . . . . . . . . . . . . . . . . . . . . . . . . . . . . 1 . . . . . Interference 6 | . . . . . 3 . . . . . . . . . . . . . . . . . . . . . . 1 . 2 . . . . . . . . Damage (minor) 1 | . . . . . . . . . . . . . . . . . . . . . . . . . . . . . . 1 . . . . . . . . Siege Activations . | . . . . . . . . . . . . . . . . . . . . . . . . . . . . . . . . . . . . . . . Robots Corrupted 19 | . . . . . . . . . . . . . 1 . 5 . 1 1 . . . . . . 2 . 1 . . 6 . 1 1 . . . . . Combat Hostiles 12 | . . . . . . . . . . . . . . . 5 . . 1 . . . . . . . . . . . 6 . . . . . . . . Parts Fried 32 | . . . . . . . . . . . . . 3 . 2 . 4 3 . . . . . 2 3 . . . . 12 . 1 2 . . . . . Impact Corruptions 14 | . . . . . . . . . . . 1 . 5 . . . . . . . . . . 2 3 . 1 . . . . 1 1 . . . . . Robots Melted 7 | . . . 2 . . . . . . . . . . 3 . 1 . 1 . . . . . . . . . . . . . . . . . . . . Combat Hostiles 7 | . . . 2 . . . . . . . . . . 3 . 1 . 1 . . . . . . . . . . . . . . . . . . . . Parts Melted 38 | . . . 9 . . 2 . . . . . . . 16 2 5 . 1 . . . . . . . . 2 . . . . . . . . . . 1 Heat Transferred 14239 | 350 1155 555 2442 . 185 350 . . . . . . . 4947 462 625 1300 296 . . . . . . . . 1250 . . 100 . . . . . . 37 185 Parts Sabotaged 2 | . . . . . . . . . . . . . . . . . . . . . . . . . . . . . . . . . 2 . . . . . Parts Stolen . | . . . . . . . . . . . . . . . . . . . . . . . . . . . . . . . . . . . . . . . Parts Stripped . | . . . . . . . . . . . . . . . . . . . . . . . . . . . . . . . . . . . . . . . Power Chain Reactions 1 | . . . . . . . . . . . . . . . . . . . . . . . . . . . . . . 1 . . . . . . . . Alert | -11 -10 -10 -9 -9 -8 -7 -7 -7 -7 -6 -6 -6 -6 -6 -6 -6 -6 -5 -5 -5 -5 -5 -5 -4 -4 -4 -4 -4 -4 -4 -3 -3 -3 -3 -2 -2 -2 -1 ------- Run | Yrd Mat Min Mat Min Mat Fac Low Low Zio Pro Fac Was Fac Ext Cet Arc Hub Fac Was Fac Upp Upp Zhi Pro Fac Was Fac Upp Upp War Pro Res Arm Lab Res Qua Sec Acc Peak Influence 1397 | 20 217 55 693 295 394 1076 . . . . 165 56 440 704 637 465 1397 661 171 410 . . . . 184 30 520 . . . . 339 423 . 248 137 523 494 Initial 585 | . 13 27 21 245 29 151 . . . . 102 56 39 164 367 174 92 585 141 119 . . . . 2 . 21 . . . . . 172 . . 76 76 322 Average 301 | 6 108 33 436 179 178 497 . . . . 125 56 183 350 490 358 591 554 154 226 . . . . 93 19 285 . . . . 145 275 . 110 105 305 369 Maximum Alert Level 4 | . 1 . 2 1 1 3 . . . . . . 2 3 2 2 4 2 . 2 . . . . . . 2 . . . . 1 2 . 1 . 2 2 Low Security (%) 39 | 100 97 100 8 42 62 13 . . . . 100 100 51 28 . 3 20 . 100 56 . . . . 100 100 42 . . . . 62 23 . 89 100 24 . Level 1 30 | . 2 . 43 57 37 29 . . . . . . 43 33 5 54 14 5 . 39 . . . . . . . . . . . 37 64 . 10 . 49 74 Level 2 24 | . . . 48 . . 23 . . . . . . 5 28 94 41 10 94 . 3 . . . . . . 57 . . . . . 12 . . . 25 25 Level 3 5 | . . . . . . 33 . . . . . . . 9 . . 45 . . . . . . . . . . . . . . . . . . . . . Level 4 . | . . . . . . . . . . . . . . . . . 8 . . . . . . . . . . . . . . . . . . . . . Level 5 . | . . . . . . . . . . . . . . . . . . . . . . . . . . . . . . . . . . . . . . . High Security . | . . . . . . . . . . . . . . . . . . . . . . . . . . . . . . . . . . . . . . . Max Security . | . . . . . . . . . . . . . . . . . . . . . . . . . . . . . . . . . . . . . . . Squads Dispatched 62 | . . . 4 1 6 13 . . . . 3 . 6 3 . . 4 4 . 1 . . . . 2 . . . . . . 1 3 . 1 4 4 2 Investigation 19 | . . . 2 . 2 4 . . . . 1 . 4 1 . . . 2 . . . . . . 1 . . . . . . . 1 . . . . 1 Extermination 4 | . . . . . . 1 . . . . . . 1 . . . . 1 . . . . . . . . . . . . . . . . . . 1 . Reinforcement 30 | . . . 2 . 1 5 . . . . 2 . 1 1 . . 3 1 . 1 . . . . 1 . . . . . . 1 2 . 1 4 3 1 Assault 6 | . . . . 1 . 3 . . . . . . . 1 . . 1 . . . . . . . . . . . . . . . . . . . . . Garrison 3 | . . . . . 3 . . . . . . . . . . . . . . . . . . . . . . . . . . . . . . . . . Intercept . | . . . . . . . . . . . . . . . . . . . . . . . . . . . . . . . . . . . . . . . Searches Triggered 3 | . . . . . . 1 . . . . . . . 1 . . . . . . . . . . . . . . . . . . . . . . 1 . Construction Impeded 1 | . . . . . . . . . . . . . . . . . 1 . . . . . . . . . . . . . . . . . . . . . Haulers Reinforced 3 | . . . . . . 1 . . . . . . 1 . . . . . . . . . . . . . . . . . . . . . 1 . . . Active Scanning Responses . | . . . . . . . . . . . . . . . . . . . . . . . . . . . . . . . . . . . . . . . Cargo Convoy Interrupts . | . . . . . . . . . . . . . . . . . . . . . . . . . . . . . . . . . . . . . . . Stealth | -11 -10 -10 -9 -9 -8 -7 -7 -7 -7 -6 -6 -6 -6 -6 -6 -6 -6 -5 -5 -5 -5 -5 -5 -4 -4 -4 -4 -4 -4 -4 -3 -3 -3 -3 -2 -2 -2 -1 --------- Run | Yrd Mat Min Mat Min Mat Fac Low Low Zio Pro Fac Was Fac Ext Cet Arc Hub Fac Was Fac Upp Upp Zhi Pro Fac Was Fac Upp Upp War Pro Res Arm Lab Res Qua Sec Acc Distress Signals 38 | . 2 . 1 . 4 2 . . . . 1 . 3 2 2 . 1 . . 4 . . . . 1 . 2 . . . 2 . 3 . . 4 3 1 Communications Jammed 72 | . . . . . . . . . . . . . . . . . . . . . . . . . . . 6 . . . . . . . 5 36 24 1 Distress Signals 72 | . . . . . . . . . . . . . . . . . . . . . . . . . . . 6 . . . . . . . 5 36 24 1 Times Spotted 665 | . 15 12 43 7 40 52 1 14 . 5 12 6 41 58 9 13 24 23 6 20 7 5 . 1 25 4 18 5 . 24 17 23 19 . 26 5 42 43 Peak Tracking Total 16 | . 4 11 5 4 10 10 1 10 . 3 7 6 7 8 5 2 16 8 6 11 10 3 . 1 8 4 12 4 . 12 8 12 11 . 7 4 16 15 Tactical Retreats 113 | . 2 2 4 . 3 10 . 3 . . 1 . 14 6 . . 2 4 . 6 2 2 . 1 10 . 5 2 . 1 3 4 4 . 7 . 11 4 Traps | -11 -10 -10 -9 -9 -8 -7 -7 -7 -7 -6 -6 -6 -6 -6 -6 -6 -6 -5 -5 -5 -5 -5 -5 -4 -4 -4 -4 -4 -4 -4 -3 -3 -3 -3 -2 -2 -2 -1 ------- Run | Yrd Mat Min Mat Min Mat Fac Low Low Zio Pro Fac Was Fac Ext Cet Arc Hub Fac Was Fac Upp Upp Zhi Pro Fac Was Fac Upp Upp War Pro Res Arm Lab Res Qua Sec Acc Traps Triggered 19 | . . . . . . 6 . . . . 1 . . 2 . . 1 3 . . . . . . 2 . . 1 . . . . 1 . . 1 . 1 Indirectly 1 | . . . . . . . . . . . . . . . . . 1 . . . . . . . . . . . . . . . . . . . . . Trap Hack Attempts 51 | . . . . . . . . . . . . . . 51 . . . . . . . . . . . . . . . . . . . . . . . . Triggered 1 | . . . . . . . . . . . . . . 1 . . . . . . . . . . . . . . . . . . . . . . . . Disarmed . | . . . . . . . . . . . . . . . . . . . . . . . . . . . . . . . . . . . . . . . Reprogrammed 5 | . . . . . . . . . . . . . . 5 . . . . . . . . . . . . . . . . . . . . . . . . Reused 4 | . . . . . . . . . . . . . . 4 . . . . . . . . . . . . . . . . . . . . . . . . Traps Extracted 12 | . . . . . . . 1 . . . . . . 5 . . . . . . . . . . . . . 1 . 5 . . . . . . . . Installed 5 | . . . . . . . . . . . . . . 5 . . . . . . . . . . . . . . . . . . . . . . . . Triggered 18 | . . . . . . . 3 . . 2 . . . 4 . . . . . . . . . . . . . 1 . 8 . . . . . . . . Most Traps Carried 6 | . . . . . . . 1 1 1 1 1 1 1 5 1 1 1 1 1 1 1 1 1 1 1 1 1 1 1 6 6 6 6 6 6 6 6 6 Machines | -11 -10 -10 -9 -9 -8 -7 -7 -7 -7 -6 -6 -6 -6 -6 -6 -6 -6 -5 -5 -5 -5 -5 -5 -4 -4 -4 -4 -4 -4 -4 -3 -3 -3 -3 -2 -2 -2 -1 ---------- Run | Yrd Mat Min Mat Min Mat Fac Low Low Zio Pro Fac Was Fac Ext Cet Arc Hub Fac Was Fac Upp Upp Zhi Pro Fac Was Fac Upp Upp War Pro Res Arm Lab Res Qua Sec Acc Machines Disabled 77 | . 1 . 7 1 1 17 . 1 . . . . 1 1 . 2 21 1 . . . . . . 1 . 10 . . . . . 3 1 . 2 6 . Max in Single Turn 20 | . 1 . 1 . 1 14 . 1 . . . . 1 . . . 20 1 . . . . . . 1 . 10 . . . . . 1 1 . 1 1 . Garrison Access 8 | . . . . . . 1 . . . . . . . . . . 1 . . . . . . . . . 1 . . . . 1 . . 2 . 1 1 Network Hub 3 | . . . . . . . . . . . . . . . . . 3 . . . . . . . . . . . . . . . . . . . . . Machines Repaired . | . . . . . . . . . . . . . . . . . . . . . . . . . . . . . . . . . . . . . . . Machines Dismantled . | . . . . . . . . . . . . . . . . . . . . . . . . . . . . . . . . . . . . . . . Machines Sabotaged . | . . . . . . . . . . . . . . . . . . . . . . . . . . . . . . . . . . . . . . . Overloaded Fab Kills . | . . . . . . . . . . . . . . . . . . . . . . . . . . . . . . . . . . . . . . . Hacking | -11 -10 -10 -9 -9 -8 -7 -7 -7 -7 -6 -6 -6 -6 -6 -6 -6 -6 -5 -5 -5 -5 -5 -5 -4 -4 -4 -4 -4 -4 -4 -3 -3 -3 -3 -2 -2 -2 -1 --------- Run | Yrd Mat Min Mat Min Mat Fac Low Low Zio Pro Fac Was Fac Ext Cet Arc Hub Fac Was Fac Upp Upp Zhi Pro Fac Was Fac Upp Upp War Pro Res Arm Lab Res Qua Sec Acc Machines Accessed 121 | . 8 . 7 . 5 17 1 . 1 1 3 . 9 8 2 . 4 6 . 4 . . 7 . 7 . 7 1 . 2 . 4 4 . 2 1 7 3 Terminals 75 | . 6 . 5 . 5 7 . . . 1 1 . 6 8 2 . 3 4 . 2 . . . . 6 . 5 . . . . 2 3 . 1 1 6 1 Fabricators 10 | . . . . . . 4 . . . . . . 2 . . . . 1 . 1 . . . . 1 . . . . . . . 1 . . . . . Repair Stations 2 | . . . . . . 1 . . . . . . . . . . . 1 . . . . . . . . . . . . . . . . . . . . Recycling Units 8 | . 2 . . . . 3 . . . . 1 . . . . . . . . . . . . . . . . . . . . 1 . . . . . 1 Scanalyzers 4 | . . . 2 . . . . . . . 1 . . . . . . . . . . . . . . . 1 . . . . . . . . . . . Garrison Access 10 | . . . . . . 2 . . . . . . 1 . . . 1 . . 1 . . . . . . 1 . . . . 1 . . 1 . 1 1 Total Hacks 451 | . 23 . 20 . 17 42 1 . 7 2 13 . 35 16 5 . 11 31 . 16 . . 46 . 38 . 32 1 . 3 . 11 15 . 8 6 37 15 Successful 268 | . 13 . 9 . 9 23 1 . 7 2 9 . 16 9 3 . 7 19 . 6 . . 46 . 19 . 12 1 . 3 . 7 11 . 7 6 19 4 Failed 182 | . 10 . 10 . 8 19 . . . . 4 . 19 7 2 . 4 12 . 10 . . . . 19 . 20 . . . . 4 4 . 1 . 18 11 Catastrophic 42 | . 1 . . . 1 4 . . . . . . 8 2 . . 1 7 . 2 . . . . 4 . 4 . . . . 2 1 . . . 2 3 Database Lockouts 1 | . . . 1 . . . . . . . . . . . . . . . . . . . . . . . . . . . . . . . . . . . Manual 132 | . 7 . 8 . 9 8 . . . . . . 15 4 1 . 1 18 . 2 . . . . 17 . 10 . . 2 . 1 7 . 2 3 17 . Terminals 298 | . 21 . 15 . 17 23 . . . 2 4 . 16 16 5 . 10 27 . 9 . . . . 32 . 24 . . . . 8 10 . 7 6 35 11 Fabricators 45 | . . . . . . 11 . . . . . . 17 . . . . 3 . 3 . . . . 6 . . . . . . . 5 . . . . . Repair Stations 3 | . . . . . . 2 . . . . . . . . . . . 1 . . . . . . . . . . . . . . . . . . . . Recycling Units 11 | . 2 . . . . 4 . . . . 1 . . . . . . . . . . . . . . . . . . . . 1 . . . . . 3 Scanalyzers 19 | . . . 5 . . . . . . . 8 . . . . . . . . . . . . . . . 6 . . . . . . . . . . . Garrison Access 17 | . . . . . . 2 . . . . . . 2 . . . 1 . . 4 . . . . . . 2 . . . . 2 . . 1 . 2 1 Terminal Hacks 182 | . 10 . 4 . 7 9 1 . 7 2 . . 5 7 3 . 6 14 . 5 . . 46 . 11 . 7 1 . 3 . 4 4 . 6 5 14 1 Record 44 | . . . . . 1 . . . . 2 . . . . 2 . . . . . . . 34 . 1 . 1 . . 2 . . . . 1 . . . Part Schematic 20 | . . . 1 . . . . . 7 . . . 1 . . . . . . 1 . . 4 . 3 . 1 . . . . . . . 1 1 . . Robot Analysis 8 | . 2 . . . . . . . . . . . . . . . . 2 . . . . 4 . . . . . . . . . . . . . . . Prototype ID Bank 12 | . 1 . . . . 1 . . . . . . . . . . . 3 . . . . 4 . . . 1 . . . . . . . . 1 1 . Open Door 10 | . . . . . . . 1 . . . . . . 4 1 . . . . . . . . . . . . 1 . 1 . . . . . . 1 1 Level Access Points 5 | . . . . . . 1 . . . . . . . . . . 1 . . 1 . . . . . . . . . . . . . . . 1 1 . Branch Access Points 7 | . . . . . 1 1 . . . . . . . . . . . 1 . 1 . . . . . . 1 . . . . . . . 1 1 . . Machine Index 1 | . . . . . . . . . . . . . . . . . . . . . . . . . . . . . . . . 1 . . . . . . Terminal Index 4 | . . . . . 1 . . . . . . . 1 . . . 1 . . . . . . . 1 . . . . . . . . . . . . . Scanalyzer Index 1 | . . . . . . . . . . . . . . . . . . 1 . . . . . . . . . . . . . . . . . . . . Garrison Index 1 | . . . . . . . . . . . . . . . . . . . . . . . . . . . . . . . . . . . . . 1 . Alert Level 5 | . . . . . . . . . . . . . . 1 . . . 1 . . . . . . 1 . . . . . . . 1 . . . 1 . Unreport Threat 5 | . . . . . . . . . . . . . . 1 . . 1 2 . . . . . . . . . . . . . . . . . . 1 . Locate Traps 18 | . 3 . 1 . 2 3 . . . . . . 1 . . . . 1 . 1 . . . . . . 1 . . . . 1 1 . 1 . 2 . Dispatch Records 1 | . . . . . . . . . . . . . 1 . . . . . . . . . . . . . . . . . . . . . . . . . Recall Investigation 2 | . . . . . . . . . . . . . 1 . . . . 1 . . . . . . . . . . . . . . . . . . . . Recall Reinforcements 1 | . . . . . . . . . . . . . . . . . . . . . . . . . . . . . . . . . . . . . 1 . Hauler Manifests 13 | . 1 . 1 . 1 1 . . . . . . . . . . 1 1 . 1 . . . . 2 . . . . . . 1 . . 1 1 1 . Registered Components 4 | . 1 . . . . . . . . . . . . . . . . . . . . . . . . . . . . . . 1 1 . . . 1 . Registered Prototypes 3 | . . . . . . . . . . . . . . . . . 1 . . . . . . . 1 . 1 . . . . . . . . . . . Zone Layout 17 | . 2 . 1 . 1 2 . . . . . . . 1 . . 1 1 . . . . . . 2 . 1 . . . . . 1 . 1 . 3 . Fabricator Hacks 26 | . . . . . . 8 . . . . . . 8 . . . . 3 . 1 . . . . 3 . . . . . . . 3 . . . . . Network Status 7 | . . . . . . 3 . . . . . . 1 . . . . 1 . . . . . . 1 . . . . . . . 1 . . . . . Load Schematic 9 | . . . . . . 2 . . . . . . 4 . . . . 1 . . . . . . 1 . . . . . . . 1 . . . . . Build 10 | . . . . . . 3 . . . . . . 3 . . . . 1 . 1 . . . . 1 . . . . . . . 1 . . . . . Repair Station Hacks . | . . . . . . . . . . . . . . . . . . . . . . . . . . . . . . . . . . . . . . . Recycling Unit Hacks 8 | . 2 . . . . 2 . . . . 1 . . . . . . . . . . . . . . . . . . . . 1 . . . . . 2 Report Inventory 7 | . 2 . . . . 2 . . . . 1 . . . . . . . . . . . . . . . . . . . . 1 . . . . . 1 Retrieve Components 1 | . . . . . . . . . . . . . . . . . . . . . . . . . . . . . . . . . . . . . . 1 Scanalyzer 15 | . . . 4 . . . . . . . 8 . . . . . . . . . . . . . . . 3 . . . . . . . . . . . Insert Component 7 | . . . 2 . . . . . . . 3 . . . . . . . . . . . . . . . 2 . . . . . . . . . . . Analyze 8 | . . . 2 . . . . . . . 5 . . . . . . . . . . . . . . . 1 . . . . . . . . . . . Garrison Access Hacks 6 | . . . . . . . . . . . . . . . . . 1 . . . . . . . . . 1 . . . . 1 . . 1 . 1 1 Seal Access 6 | . . . . . . . . . . . . . . . . . 1 . . . . . . . . . 1 . . . . 1 . . 1 . 1 1 Unauthorized Hacks 31 | . 1 . 1 . 2 4 . . . . . . 3 2 . . . 2 . . . . . . 5 . 1 . . . . 1 4 . . 1 4 . Terminals 25 | . 1 . 1 . 2 2 . . . . . . 1 2 . . . 2 . . . . . . 4 . 1 . . . . 1 3 . . 1 4 . Track 3 | . . . . . . . . . . . . . . 2 . . . . . . . . . . . . . . . . . . . . . . 1 . Assimilate 8 | . . . . . 2 1 . . . . . . 1 . . . . . . . . . . . 1 . . . . . . . 1 . . . 2 . Botnet 14 | . 1 . 1 . . 1 . . . . . . . . . . . 2 . . . . . . 3 . 1 . . . . 1 2 . . 1 1 . Fabricators 5 | . . . . . . 1 . . . . . . 2 . . . . . . . . . . . 1 . . . . . . . 1 . . . . . Prioritize 5 | . . . . . . 1 . . . . . . 2 . . . . . . . . . . . 1 . . . . . . . 1 . . . . . Repair Stations 1 | . . . . . . 1 . . . . . . . . . . . . . . . . . . . . . . . . . . . . . . . . Patch 1 | . . . . . . 1 . . . . . . . . . . . . . . . . . . . . . . . . . . . . . . . . Recycling Units . | . . . . . . . . . . . . . . . . . . . . . . . . . . . . . . . . . . . . . . . Scanalyzers . | . . . . . . . . . . . . . . . . . . . . . . . . . . . . . . . . . . . . . . . Garrison Access . | . . . . . . . . . . . . . . . . . . . . . . . . . . . . . . . . . . . . . . . Data Cores Recovered 3 | . . . . . 1 1 . . . . . . . . . . . . . . . . . . 1 . . . . . . . . . . . . . Used 1 | . . . . . 1 . . . . . . . . . . . . . . . . . . . . . . . . . . . . . . . . . Hacking Detections 74 | . 5 . 6 . 5 13 . . . 1 1 . 9 4 1 . 3 5 . 3 . . . . 5 . 3 . . . . 1 2 . 1 1 4 1 Full Trace Events 18 | . . . 3 . 2 3 . . . . 1 . 4 1 . . . 1 . . . . . . 1 . . . . . . . 1 . . . . 1 Feedback Events . | . . . . . . . . . . . . . . . . . . . . . . . . . . . . . . . . . . . . . . . Feedback Blocked . | . . . . . . . . . . . . . . . . . . . . . . . . . . . . . . . . . . . . . . . Robot Schematics Acquired . | . . . . . . . . . . . . . . . . . . . . . . . . . . . . . . . . . . . . . . . Robots Built . | . . . . . . . . . . . . . . . . . . . . . . . . . . . . . . . . . . . . . . . Authchips . | . . . . . . . . . . . . . . . . . . . . . . . . . . . . . . . . . . . . . . . Time . | . . . . . . . . . . . . . . . . . . . . . . . . . . . . . . . . . . . . . . . Total Robot Build Rating . | . . . . . . . . . . . . . . . . . . . . . . . . . . . . . . . . . . . . . . . Part Schematics Acquired 26 | . . . 3 . . . . . 7 . 3 . 1 . . . . . . 1 . . 4 . 3 . 2 . . . . . . . 1 1 . . Parts Built 13 | . . . . . . 4 . . . . . . 3 . . . . 1 . 2 . . . . 1 . . . . . . . 2 . . . . . Authchips 2 | . . . . . . . . . . . . . 2 . . . . . . . . . . . . . . . . . . . . . . . . . Time 736 | . . . . . . 201 . . . . . . 300 . . . . 134 . 42 . . . . 33 . . . . . . . 26 . . . . . Total Part Build Rating 62 | . . . . . . 16 . . . . . . 10 . . . . 4 . 16 . . . . 4 . . . . . . . 12 . . . . . Parts Repaired . | . . . . . . . . . . . . . . . . . . . . . . . . . . . . . . . . . . . . . . . Time . | . . . . . . . . . . . . . . . . . . . . . . . . . . . . . . . . . . . . . . . Parts Recycled . | . . . . . . . . . . . . . . . . . . . . . . . . . . . . . . . . . . . . . . . Recycled Matter . | . . . . . . . . . . . . . . . . . . . . . . . . . . . . . . . . . . . . . . . Retrieved Matter . | . . . . . . . . . . . . . . . . . . . . . . . . . . . . . . . . . . . . . . . Retrieved Components 1 | . . . . . . . . . . . . . . . . . . . . . . . . . . . . . . . . . . . . . . 1 Parts Scanalyzed 6 | . . . 2 . . . . . . . 3 . . . . . . . . . . . . . . . 1 . . . . . . . . . . . Part Schematics Acquired 6 | . . . 2 . . . . . . . 3 . . . . . . . . . . . . . . . 1 . . . . . . . . . . . Parts Damaged 1 | . . . . . . . . . . . . . . . . . . . . . . . . . . . 1 . . . . . . . . . . . Bothacking | -11 -10 -10 -9 -9 -8 -7 -7 -7 -7 -6 -6 -6 -6 -6 -6 -6 -6 -5 -5 -5 -5 -5 -5 -4 -4 -4 -4 -4 -4 -4 -3 -3 -3 -3 -2 -2 -2 -1 ------------ Run | Yrd Mat Min Mat Min Mat Fac Low Low Zio Pro Fac Was Fac Ext Cet Arc Hub Fac Was Fac Upp Upp Zhi Pro Fac Was Fac Upp Upp War Pro Res Arm Lab Res Qua Sec Acc Used RIF Installer . | . . . . . . . . . . . . . . . . . . . . . . . . . . . . . . . . . . . . . . . Robots Hacked 3 | . . . . . . . . . . . . . . . . 2 . . . . 1 . . . . . . . . . . . . . . . . . Non-combat 1 | . . . . . . . . . . . . . . . . . . . . . 1 . . . . . . . . . . . . . . . . . Combat 2 | . . . . . . . . . . . . . . . . 2 . . . . . . . . . . . . . . . . . . . . . . Robot Hacks Applied 4 | . . . . . . . . . . . . . . . . 2 . . . . 2 . . . . . . . . . . . . . . . . . parse_system 3 | . . . . . . . . . . . . . . . . 2 . . . . 1 . . . . . . . . . . . . . . . . . no_distress 1 | . . . . . . . . . . . . . . . . . . . . . 1 . . . . . . . . . . . . . . . . . Relay Couplers Released 6 | . . . . . . 4 . . . . . . . . . . . . . . . . . . . . . . . . . . . . 2 . . . Machine Destruction 3 | . . . . . . 1 . . . . . . . . . . . . . . . . . . . . . . . . . . . . 2 . . . Programmers 3 | . . . . . . 3 . . . . . . . . . . . . . . . . . . . . . . . . . . . . . . . . Fabnet Peak Effective % . | . . . . . . . . . . . . . . . . . . . . . . . . . . . . . . . . . . . . . . . Robots Rewired 29 | . . . . . . . . . . . . . . 25 . . . . . . . . . . . . . . . . . . 4 . . . . . Allies Hacked . | . . . . . . . . . . . . . . . . . . . . . . . . . . . . . . . . . . . . . . . Hacks Repelled . | . . . . . . . . . . . . . . . . . . . . . . . . . . . . . . . . . . . . . . . Allies | -11 -10 -10 -9 -9 -8 -7 -7 -7 -7 -6 -6 -6 -6 -6 -6 -6 -6 -5 -5 -5 -5 -5 -5 -4 -4 -4 -4 -4 -4 -4 -3 -3 -3 -3 -2 -2 -2 -1 -------- Run | Yrd Mat Min Mat Min Mat Fac Low Low Zio Pro Fac Was Fac Ext Cet Arc Hub Fac Was Fac Upp Upp Zhi Pro Fac Was Fac Upp Upp War Pro Res Arm Lab Res Qua Sec Acc Total Allies 72 | . . 2 . 1 . . . . 3 . . . 1 29 5 . . . . . . . . . 1 . . . . . . . 5 . . . 2 23 Largest Group 14 | . . 2 . 1 1 . . . 3 3 3 . 1 12 10 9 8 . . . . . . . 1 . . . . . . . 3 . . . 1 14 Highest-Rated Group 754 | . . 50 . 31 31 . . . 95 95 87 . 10 470 754 588 563 . . . . . . . 26 . . . . . . . 113 . . . 45 200 Highest-Rated Ally 159 | . . 31 . 31 31 . . . 39 39 34 . 10 159 159 96 96 . . . . . . . 26 . . . . . . . 56 . . . 45 15 Total Orders 5 | . . . . . . . . . . . . . . 2 . . 3 . . . . . . . . . . . . . . . . . . . . . STAY 4 | . . . . . . . . . . . . . . 1 . . 3 . . . . . . . . . . . . . . . . . . . . . FOLLOW 1 | . . . . . . . . . . . . . . 1 . . . . . . . . . . . . . . . . . . . . . . . . Ally Attacks 355 | . . 5 . 9 15 . . . . 30 8 . . 124 29 21 54 . . . . . . . . . . . . . . . 12 . . . . 48 Total Damage 7992 | . . 84 . 106 185 . . . . 445 199 . . 2671 785 564 1777 . . . . . . . . . . . . . . . 491 . . . . 685 Kills 65 | . . 2 . 2 2 . . . . 5 3 . . 24 3 3 16 . . . . . . . . . . . . . . . . . . . . 5 Allies Corrupted 6 | . . . . . . . . . . . . . . . . . 4 . . . . . . . . . . . . . . . 2 . . . . . Allies Melted 2 | . . . . . . . . . . . . . . 2 . . . . . . . . . . . . . . . . . . . . . . . . Intel | -11 -10 -10 -9 -9 -8 -7 -7 -7 -7 -6 -6 -6 -6 -6 -6 -6 -6 -5 -5 -5 -5 -5 -5 -4 -4 -4 -4 -4 -4 -4 -3 -3 -3 -3 -2 -2 -2 -1 ------- Run | Yrd Mat Min Mat Min Mat Fac Low Low Zio Pro Fac Was Fac Ext Cet Arc Hub Fac Was Fac Upp Upp Zhi Pro Fac Was Fac Upp Upp War Pro Res Arm Lab Res Qua Sec Acc Robot Analysis Total 8 | . 2 . . . . . . . . . . . . . . . . 2 . . . . 4 . . . . . . . . . . . . . . . Derelict Logs Recovered 9 | . . . . 1 . . 2 . . 2 . . . . . . . . . . 1 . . 1 . . . 2 . . . . . . . . . . Drone Launches . | . . . . . . . . . . . . . . . . . . . . . . . . . . . . . . . . . . . . . . . Drone Recoveries . | . . . . . . . . . . . . . . . . . . . . . . . . . . . . . . . . . . . . . . . Exploration | -11 -10 -10 -9 -9 -8 -7 -7 -7 -7 -6 -6 -6 -6 -6 -6 -6 -6 -5 -5 -5 -5 -5 -5 -4 -4 -4 -4 -4 -4 -4 -3 -3 -3 -3 -2 -2 -2 -1 ------------- Run | Yrd Mat Min Mat Min Mat Fac Low Low Zio Pro Fac Was Fac Ext Cet Arc Hub Fac Was Fac Upp Upp Zhi Pro Fac Was Fac Upp Upp War Pro Res Arm Lab Res Qua Sec Acc Turns Passed 19088 | 157 1122 585 2100 1017 892 1221 140 387 498 374 149 46 1136 2426 537 603 401 780 41 214 226 149 76 106 437 26 200 207 136 365 184 154 334 339 516 168 341 298 Spaces Moved 23781 | 70 599 302 1010 678 461 2441 316 820 920 525 264 124 1987 1452 246 211 199 682 116 632 569 479 173 327 1141 91 556 459 245 766 529 436 578 180 1102 290 1022 783 Core 146 | 3 . . . . 2 . . . . . . . . 25 . . . 1 . . . . . . . . . . . . . . . . . . . 115 Treads 3372 | 67 599 302 407 . 31 . . . . . . . . 1070 246 211 199 240 . . . . . . . . . . . . . . . . . . . . Legs . | . . . . . . . . . . . . . . . . . . . . . . . . . . . . . . . . . . . . . . . Wheels 1513 | . . . 603 678 232 . . . . . . . . . . . . . . . . . . . . . . . . . . . . . . . . . Hover . | . . . . . . . . . . . . . . . . . . . . . . . . . . . . . . . . . . . . . . . Flight 18566 | . . . . . 196 2441 316 820 920 525 264 124 1987 357 . . . 441 116 632 569 479 173 327 1141 91 556 459 245 766 529 436 578 180 1102 290 856 650 Fastest Speed 17 | 50 160 160 110 145 34 29 40 40 40 42 35 31 24 26 160 160 160 28 32 26 28 29 27 27 23 28 28 28 28 21 28 27 32 33 33 33 23 17 Average Speed 58 | 155 160 160 161 145 115 34 40 40 44 42 38 34 27 126 160 160 160 77 32 29 28 29 33 27 27 28 28 28 28 27 28 28 32 33 33 34 27 29 Slowest Speed 850 | 160 160 160 240 145 850 40 40 40 45 45 45 39 31 160 160 160 160 250 32 97 30 30 101 29 28 28 28 28 28 28 28 32 35 33 39 39 110 250 Overloaded Moves 66 | . . . . . . . . . . . . . . . . . . . . . . . . . . . . . . 5 . . . . . . 22 39 Propulsion Burnouts . | . . . . . . . . . . . . . . . . . . . . . . . . . . . . . . . . . . . . . . . Robots Hopped 129 | . . . . . 4 18 . 3 . . 1 6 8 2 . . . 4 4 6 . . . . 5 2 4 . . . 2 10 3 . 7 . 22 18 Cave-ins Triggered . | . . . . . . . . . . . . . . . . . . . . . . . . . . . . . . . . . . . . . . . Teleports 2 | . . . . . . . . . . . . . . . . . . . . . . . . . . . . . . . . . 1 . . . . 1 Microwarps 15 | . . . . . . . . . . . . . . . . . . . . . . . . . . . . . . . . . . . . . 14 1 Exploration Rate (%) 56 | 6 95 56 82 97 54 63 50 78 82 68 11 75 23 98 78 95 38 19 80 24 76 75 62 52 34 73 20 56 41 83 61 14 43 94 34 41 50 18 Regions Visited 38 Branch Regions 22 Pre-discovered Areas 4 | . . 1 . . . . . . . . . . . . . . . . . . . . 3 . . . . . . . . . . . . . . . Known Exits Taken 26 | . . . . . . 1 1 1 1 1 . . 1 1 1 1 1 . . 1 1 1 1 1 . . 1 1 1 1 1 1 1 1 1 1 1 . Unknown Exits Taken 6 | 1 1 1 1 1 1 . . . . . . . . . . . . . . . . . . . . . . . . . . . . . . . . . Scrap Searched 20 | . . . . 2 . . 1 2 1 3 . . . . . . . . . . 1 2 . 4 . . . 2 . . 2 . . . . . . . Spaces Dug 166 | . . . 1 . 1 20 2 9 . 5 3 . 21 24 . . . 4 . . . . . 1 13 . 3 3 5 2 6 7 11 . 16 2 6 1 Terrain Destroyed 795 | . . . 18 45 39 152 2 9 . 5 3 . 62 157 . . 184 4 . . . . . 1 13 . 37 3 6 5 6 7 11 . 16 2 7 1 Melee 105 | . . . 1 . 1 13 2 9 . 5 3 . 21 . . . . 4 . . . . . 1 12 . 3 2 1 . 6 5 9 . 5 2 . . Projectile 34 | . . . . . . . . . . . . . . 1 . . 1 . . . . . . . 1 . . 1 5 2 . 2 2 . 11 . 7 1 AOE 656 | . . . 17 45 38 139 . . . . . . 41 156 . . 183 . . . . . . . . . 34 . . 3 . . . . . . . . Terrain Rammed . | . . . . . . . . . . . . . . . . . . . . . . . . . . . . . . . . . . . . . . . Walls Destroyed . | . . . . . . . . . . . . . . . . . . . . . . . . . . . . . . . . . . . . . . . Machines Disabled . | . . . . . . . . . . . . . . . . . . . . . . . . . . . . . . . . . . . . . . . Actions | -11 -10 -10 -9 -9 -8 -7 -7 -7 -7 -6 -6 -6 -6 -6 -6 -6 -6 -5 -5 -5 -5 -5 -5 -4 -4 -4 -4 -4 -4 -4 -3 -3 -3 -3 -2 -2 -2 -1 --------- Run | Yrd Mat Min Mat Min Mat Fac Low Low Zio Pro Fac Was Fac Ext Cet Arc Hub Fac Was Fac Upp Upp Zhi Pro Fac Was Fac Upp Upp War Pro Res Arm Lab Res Qua Sec Acc Total 27317 | 93 690 369 1265 701 628 2719 327 855 1004 666 284 119 2461 1872 354 441 240 864 115 648 635 483 190 336 1222 88 584 531 304 871 546 441 682 452 1188 335 915 799 Wait 2020 | . 27 37 91 2 21 130 . 26 74 126 . . 396 95 54 197 14 90 . 15 62 . . . 33 . 6 66 54 73 9 . 46 255 12 . 2 7 Move 23335 | 69 598 301 1009 677 452 2407 315 813 919 524 262 114 1970 1447 245 210 198 674 109 619 568 478 172 326 1132 87 546 458 244 765 525 416 571 179 1088 289 825 734 Hop 112 | . . . . . 4 15 . 3 . . 1 3 8 2 . . . 4 2 6 . . . . 4 1 4 . . . 1 10 3 . 6 . 22 13 Pick Up 113 | 6 9 4 21 4 8 5 3 . 1 2 . . 2 11 6 1 1 5 . 2 . . 2 1 2 . 2 1 . . . . 2 1 3 2 4 2 Fast Attach 241 | 7 1 . 12 1 11 23 . . 5 4 4 2 10 25 9 4 1 18 2 3 . 4 6 4 10 . 6 . . 1 1 5 6 9 21 . 15 11 Attach 90 | . . 2 6 1 18 3 3 . . 1 1 . 2 6 . . . 10 . 2 1 . 2 1 2 . 1 1 . . . 1 5 . 2 2 10 7 Detach 43 | . . . . . . 3 1 . . . . . 1 9 . . . 4 . . 1 . 1 . . . 1 . . . . 1 2 1 5 1 8 4 Swap 103 | . 7 3 9 3 9 1 1 . . . . . 5 26 7 5 3 3 . . 1 . . . 1 . 4 1 . 3 . . . . 3 6 2 . Drop 198 | . 9 1 17 5 9 15 2 . 5 2 . . 6 25 13 4 3 13 2 1 . 1 7 2 10 . 7 1 . 1 1 . 2 3 14 3 9 5 Fire 445 | 11 37 15 96 7 91 11 . . . . . . 1 46 10 5 15 23 . . . . . . 1 . 1 1 5 15 3 2 2 4 13 7 16 7 Melee 356 | . . . 1 . 4 61 2 13 . 7 16 . 60 41 10 15 . 20 . . 2 . . 2 19 . 5 2 1 13 6 6 17 . 21 7 2 3 Ram 4 | . . . . 1 1 . . . . . . . . . . . . . . . . . . . . . . . . . . . . . . . . 2 Kick . | . . . . . . . . . . . . . . . . . . . . . . . . . . . . . . . . . . . . . . . Crush 20 | . 2 6 3 . . . . . . . . . . 4 . . 5 . . . . . . . . . . . . . . . . . . . . . Escape Stasis 76 | . . . . . . 45 . . . . . . . . . . . . . . . . . . 6 . 1 . . . . . 2 . . 18 . 4 Rewire 105 | . . . . . . . . . . . . . . 79 . . . . . . . . . . 2 . . . . . . . 24 . . . . . Trap 56 | . . . . . . . . . . . . . . 56 . . . . . . . . . . . . . . . . . . . . . . . . Miscellaneous . | . . . . . . . . . . . . . . . . . . . . . . . . . . . . . . . . . . . . . . . Route ------- -11/Scrapyard -10/Materials (discovered 4 exits: *Mat x3 / [*Min]) -10/Mines -9/Materials (discovered 7 exits: *Mat x3 / [*Min x2] / [*Sto x2]) -9/Mines (discovered 3 exits: *Mat x2 / *Zio) -8/Materials -7/Factory (discovered 6 exits: *Fac x4 / *Low x2) -7/Lower Caves -7/Lower Caves (discovered 2 exits: *Fac / *Zio) -7/Zion -6/Proximity Caves -6/Factory (discovered 2 exits: Low / Ext) -6/Waste -6/Factory (discovered 2 exits: *Low / *Ext) -6/Extension (discovered 2 exits: *Fac / *Cet) -6/Cetus (discovered 2 exits: *Fac / *Arc) -6/Archives (discovered 3 exits: *Fac / *Hub x2) -6/Hub_04(d) (discovered 4 exits: *Fac x4) -5/Factory (discovered 3 exits: *Fac / Upp x2) -5/Waste -5/Factory (discovered 6 exits: *Fac x4 / *Upp x2) -5/Upper Caves -5/Upper Caves (discovered 2 exits: *Fac / *Zhi) -5/Zhirov -4/Proximity Caves -4/Factory (discovered 3 exits: *Res x2 / *Upp) -4/Waste -4/Factory (discovered 3 exits: *Res / *Upp x2) -4/Upper Caves -4/Upper Caves -4/Warlord -3/Proximity Caves -3/Research (discovered 2 exits: *Arm / Tes) -3/Armory (discovered 2 exits: *Res / *Lab) -3/Lab -2/Research (discovered 3 exits: *Acc / *Qua x2) -2/Quarantine (discovered 2 exits: Acc / *Sec) -2/Section 7 -1/Access To Fleet Rendezvous History --------- Turn | Location | Event 6 | -11/Scrapyard | Discovered new exit (range 16) 158 | -11/Scrapyard | Entered Materials 311 | -10/Materials | Build established: Mutant 401 | -10/Materials | Discovered new exit (range 15) 630 | -10/Materials | Discovered new exit (range 16) 775 | -10/Materials | Discovered new exit (range 16) 1064 | -10/Materials | Discovered new exit (range 11) 1280 | -10/Materials | Entered Mines 1398 | -10/Mines | Received a Rocket Launcher from a helpful Derelict 1417 | -10/Mines | Assembled infested the area 1527 | -10/Mines | Discovered new exit (range 10) 1618 | -10/Mines | Learned location of Storage (-9) 1865 | -10/Mines | Entered Materials 1865 | -9/Materials | Evolved 2 slots: Utility x1, Weapon x1 1877 | -9/Materials | Discovered new exit (range 15) 2131 | -9/Materials | Discovered new exit (range 15) 2295 | -9/Materials | Discovered new exit (range 16) 2420 | -9/Materials | Lost 5 parts (1p1n1u2w) 2547 | -9/Materials | Discovered new exit (range 16) 2921 | -9/Materials | Build established: Scavenger-Tank 2953 | -9/Materials | Central database locked down 3275 | -9/Materials | Discovered new exit (range 16) 3425 | -9/Materials | Discovered new exit (range 15) 3682 | -9/Materials | Discovered new exit (range 16) 3965 | -9/Materials | Entered Mines 3983 | -9/Mines | Found a damaged Exp. Sensor Array with a note attached 3986 | -9/Mines | Found Prototype Device 4022 | -9/Mines | A weapon hastily lodged in a ceiling crevice suddenly fell to the ground 4047 | -9/Mines | Discovered new exit (range 6) 4167 | -9/Mines | Found a hidden stash of uninstalled traps 4318 | -9/Mines | Discovered new exit (range 13) 4458 | -9/Mines | Met a Derelict testing a Signal Generator 4628 | -9/Mines | A Derelict revealed a hidden shortcut to a safe place 4843 | -9/Mines | Joined a pair of Derelicts in attacking an 0b10 outpost 4982 | -9/Mines | Entered Materials 4982 | -8/Materials | Accompanied by 1 ally 4982 | -8/Materials | Evolved 2 slots: Propulsion x1, Utility x1 5482 | -8/Materials | Garrison activated, responded to threat 5633 | -8/Materials | Lost 7 parts (2p1n1u3w) 5647 | -8/Materials | Core integrity fell below 50% 5685 | -8/Materials | Lost 6 parts (1p2n1u2w) 5694 | -8/Materials | Destroyed 10 combat bots 5722 | -8/Materials | Core integrity fell below 20% 5736 | -8/Materials | Lost 5 parts (1n2u2w) 5868 | -8/Materials | Discovered new exit (range 20) 5874 | -8/Materials | Entered Factory 5874 | -7/Factory | Evolved 2 slots: Propulsion x1, Utility x1 5883 | -7/Factory | Identified Exp. Sensor Array 5941 | -7/Factory | Fabricated Adv. Cooling System (x2) 5963 | -7/Factory | Discovered new exit (range 10) 6093 | -7/Factory | Fabricated Imp. Flight Unit (x1) 6111 | -7/Factory | Identified exit to Factory 6674 | -7/Factory | Search patrols dispatched 6718 | -7/Factory | Lost 7 parts (3n2u2w) 6777 | -7/Factory | Identified exit to Lower Caves 6884 | -7/Factory | Fabricated Imp. Flight Unit? 6969 | -7/Factory | Core integrity fell below 50% 7074 | -7/Factory | First assault squad dispatched 7081 | -7/Factory | Build established: Hacker-Mutant 7095 | -7/Factory | Entered Lower Caves 7205 | -7/Lower Caves | Identified exit to Lower Caves 7225 | -7/Lower Caves | Learned Factory stockpile data 7235 | -7/Lower Caves | Entered another Lower Caves area 7247 | -7/Lower Caves | Attacked by a delusional Derelict stockpiling parts 7268 | -7/Lower Caves | Discovered exit to Factory (range 12) 7319 | -7/Lower Caves | Encountered a Warlord checkpoint 7568 | -7/Lower Caves | Attacked by a faux Warlord 7619 | -7/Lower Caves | Discovered new exit (range 8) 7621 | -7/Lower Caves | Identified exit to Zion 7622 | -7/Lower Caves | Core integrity fell below 20% 7622 | -7/Lower Caves | Entered Zion 7661 | -7/Zion | Given the Hacking Drone Bay 7671 | -7/Zion | Discovered new exit (range 14) 7680 | -7/Zion | System corruption cleaned by Quarantine Array 7763 | -7/Zion | Gained Derelict followers 7948 | -7/Zion | Met Imprinter 8045 | -7/Zion | Identified exit to Proximity Caves 8120 | -7/Zion | Entered Proximity Caves 8120 | -6/Proximity Caves | Accompanied by 3 allies 8122 | -6/Proximity Caves | Found DCF Scrap (15 items) 8164 | -6/Proximity Caves | Learned Factory stockpile data 8410 | -6/Proximity Caves | Build established: Derelict-Mutant 8425 | -6/Proximity Caves | Learned 8 Factory zone layouts 8466 | -6/Proximity Caves | Discovered exit to Factory (range 6) 8494 | -6/Proximity Caves | Entered Factory 8494 | -6/Factory | Accompanied by 3 allies 8494 | -6/Factory | Evolved 2 slots: Propulsion x1, Utility x1 8495 | -6/Factory | Identified exit to Extension 8495 | -6/Factory | Identified exit to Lower Caves 8600 | -6/Factory | Lost 3 allies 8643 | -6/Factory | Manually triggered Chute Trap 8643 | -6/Factory | Sucked down chute 8643 | -6/Factory | Entered Waste 8652 | -6/Waste | Spotted C-40 Crusher 8657 | -6/Waste | Lost 3 parts (1p1n1w) 8657 | -6/Waste | Spotted C-40 Crusher 8658 | -6/Waste | EMP discharged 8658 | -6/Waste | System corruption reached 10% 8658 | -6/Waste | Spotted C-40 Crusher 8660 | -6/Waste | Spotted C-40 Crusher 8677 | -6/Waste | Spotted C-40 Crusher 8678 | -6/Waste | Spotted C-40 Crusher 8685 | -6/Waste | Discovered new exit (range 15) 8689 | -6/Waste | Identified exit to Factory 8689 | -6/Waste | Entered Factory 8818 | -6/Factory | Found Prototype Launcher 8877 | -6/Factory | Discovered exit to Extension (range 4) 8969 | -6/Factory | Build established: Hacker-Sprinter 9020 | -6/Factory | Fabricated Imp. Flight Unit? 9103 | -6/Factory | Discovered exit to Lower Caves (range 10) 9346 | -6/Factory | Identified Scatter Rocket Array 9636 | -6/Factory | Fabricated Cld. VTOL Module? 9708 | -6/Factory | Fabricated Cld. VTOL Module? 9825 | -6/Factory | Entered Extension 9890 | -6/Extension | Rescued a captive Derelict 9908 | -6/Extension | Lost 4 parts (1p2n1u) 9910 | -6/Extension | Rescued a captive Derelict 10079 | -6/Extension | Core integrity fell below 50% 10175 | -6/Extension | Search patrols dispatched 10365 | -6/Extension | Build established: Scavenger-Mutant 10924 | -6/Extension | Build established: Commander-Tank 10994 | -6/Extension | Spotted B-75 Beast 11002 | -6/Extension | Allies destroyed B-75 Beast 11005 | -6/Extension | Spotted B-75 Beast 11022 | -6/Extension | Allies destroyed B-75 Beast 11025 | -6/Extension | Disrupted transfer network 11060 | -6/Extension | Lost 5 allies 11189 | -6/Extension | Lost 6 allies 11290 | -6/Extension | Rescued A7 11476 | -6/Extension | Build established: Scavenger-Tank 11633 | -6/Extension | Rescued a captive Derelict 11925 | -6/Extension | First assault squad dispatched 12019 | -6/Extension | Lost 6 allies 12215 | -6/Extension | Discovered new exit (range 16) 12216 | -6/Extension | Discovered new exit (range 15) 12247 | -6/Extension | Identified exit to Cetus 12251 | -6/Extension | Entered Cetus 12251 | -6/Cetus | Accompanied by 6 allies (A7) 12256 | -6/Cetus | Acquired a Cetus Manufacturing Module code from A7 12273 | -6/Cetus | Spotted Cetus Guard 12273 | -6/Cetus | Spotted Cetus Guard 12275 | -6/Cetus | Spotted Cetus Guard 12275 | -6/Cetus | Spotted Cetus Guard 12279 | -6/Cetus | Destroyed Cetus Guard 12281 | -6/Cetus | Destroyed Cetus Guard 12282 | -6/Cetus | Destroyed Cetus Guard 12283 | -6/Cetus | Destroyed Cetus Guard 12355 | -6/Cetus | Started Cetus Manufacturing Module 12380 | -6/Cetus | Manufactured an Enhanced Grunt 12405 | -6/Cetus | Manufactured an Enhanced Grunt 12420 | -6/Cetus | Escorted A7 to Cetus Mainframe 12430 | -6/Cetus | Manufactured an Enhanced Grunt 12455 | -6/Cetus | Manufactured an Enhanced Grunt 12480 | -6/Cetus | Manufactured an Enhanced Grunt 12514 | -6/Cetus | Discovered new exit (range 16) 12552 | -6/Cetus | Spotted Cetus Guard 12552 | -6/Cetus | Spotted Cetus Guard 12555 | -6/Cetus | Spotted Cetus Guard 12556 | -6/Cetus | Spotted Cetus Guard 12560 | -6/Cetus | Destroyed Cetus Guard 12569 | -6/Cetus | Allies destroyed Cetus Guard 12570 | -6/Cetus | Allies destroyed Cetus Guard 12572 | -6/Cetus | Destroyed Cetus Guard 12579 | -6/Cetus | Discovered new exit (range 15) 12589 | -6/Cetus | Met Revision 17 12589 | -6/Cetus | Murdered Revision 17 12597 | -6/Cetus | Lost 3 parts (2n1u) 12628 | -6/Cetus | Identified exit to Factory 12747 | -6/Cetus | Murdered A7 12752 | -6/Cetus | Extracted ID and sensor layout for unrecognized location from A7's data core 12755 | -6/Cetus | Found Prototype Protection 12755 | -6/Cetus | Identified Med. Regenerative Plating 12781 | -6/Cetus | Identified exit to Archives 12788 | -6/Cetus | Entered Archives 12788 | -6/Archives | Accompanied by 9 allies 12968 | -6/Archives | Discovered exit to Factory (range 16) 13009 | -6/Archives | Discovered new exit (range 14) 13131 | -6/Archives | Build established: Commander-Mutant 13234 | -6/Archives | Discovered new exit (range 13) 13388 | -6/Archives | Identified exit to Hub_04(d) 13391 | -6/Archives | Entered Hub_04(d) 13391 | -6/Hub_04(d) | Accompanied by 8 allies 13651 | -6/Hub_04(d) | Build established: Scavenger-Gunner 13741 | -6/Hub_04(d) | First assault squad dispatched 13757 | -6/Hub_04(d) | Network Hub disabled 13763 | -6/Hub_04(d) | Core integrity fell below 20% 13766 | -6/Hub_04(d) | Network Hub disabled 13766 | -6/Hub_04(d) | Network Hub disabled 13791 | -6/Hub_04(d) | Spotted Lightning 13792 | -6/Hub_04(d) | Entered Factory 13792 | -5/Factory | Evolved 2 slots: Power x1, Propulsion x1 13816 | -5/Factory | Lost 3 parts (1u2w) 13820 | -5/Factory | Lost 4 allies 14075 | -5/Factory | Build established: Scavenger-Mutant 14219 | -5/Factory | Discovered new exit (range 6) 14296 | -5/Factory | Lost 4 parts (1p1n1u1w) 14420 | -5/Factory | Identified exit to Upper Caves 14460 | -5/Factory | Lost 5 parts (1p3n1u) 14488 | -5/Factory | Fabricated Cld. VTOL Module (x1) 14509 | -5/Factory | Identified exit to Factory 14572 | -5/Factory | Sucked down chute 14572 | -5/Factory | Entered Waste 14575 | -5/Waste | Spotted C-40 Crusher 14577 | -5/Waste | Spotted C-40 Crusher 14578 | -5/Waste | Spotted C-40 Crusher 14582 | -5/Waste | Spotted C-40 Crusher 14595 | -5/Waste | Spotted C-40 Crusher 14597 | -5/Waste | Spotted C-40 Crusher 14604 | -5/Waste | Discovered new exit (range 16) 14613 | -5/Waste | Identified exit to Factory 14613 | -5/Waste | Entered Factory 14705 | -5/Factory | Fabricated Q-thruster? 14827 | -5/Factory | Entered Upper Caves 14972 | -5/Upper Caves | Identified exit to Upper Caves 14981 | -5/Upper Caves | Build established: Machinist-Sprinter 15045 | -5/Upper Caves | Spotted B-75 Beast 15053 | -5/Upper Caves | Entered another Upper Caves area 15059 | -5/Upper Caves | Discovered exit to Factory (range 12) 15070 | -5/Upper Caves | Encountered a Warlord checkpoint 15171 | -5/Upper Caves | Attracted the attention of an 0b10 checkpoint 15199 | -5/Upper Caves | Discovered new exit (range 10) 15202 | -5/Upper Caves | Identified exit to Zhirov 15202 | -5/Upper Caves | Entered Zhirov 15202 | -5/Zhirov | Discovered new exit (range 3) 15208 | -5/Zhirov | Met Zhirov 15218 | -5/Zhirov | Learned location of Quarantine (-2) 15218 | -5/Zhirov | Learned location of Testing (-3) 15218 | -5/Zhirov | Learned location of Command (-1) 15220 | -5/Zhirov | Zhirov requested help retrieving the SGEMP Prototype 15227 | -5/Zhirov | Found Alien Artifact 15227 | -5/Zhirov | Identified Integrated Reactor 15227 | -5/Zhirov | Installed Integrated Reactor, increased core energy generation (+10) 15249 | -5/Zhirov | Found Alien Artifact 15278 | -5/Zhirov | Identified exit to Proximity Caves 15278 | -5/Zhirov | Entered Proximity Caves 15283 | -4/Proximity Caves | Spotted B-86 Titan 15320 | -4/Proximity Caves | Attracted the attention of an 0b10 checkpoint 15384 | -4/Proximity Caves | Entered Factory 15384 | -4/Factory | Evolved 2 slots: Utility x2 15443 | -4/Factory | Fabricated Cld. VTOL Module? 15465 | -4/Factory | Discovered new exit (range 11) 15480 | -4/Factory | Identified exit to Research 15551 | -4/Factory | Build established: Hacker-Sprinter 15564 | -4/Factory | Spotted B-86 Titan 15628 | -4/Factory | Discovered new exit (range 13) 15809 | -4/Factory | Discovered exit to Research (range 8) 15821 | -4/Factory | Manually triggered Chute Trap 15821 | -4/Factory | Sucked down chute 15821 | -4/Factory | Entered Waste 15824 | -4/Waste | Spotted C-40 Crusher 15824 | -4/Waste | Spotted C-40 Crusher 15834 | -4/Waste | Spotted C-40 Crusher 15834 | -4/Waste | Spotted C-40 Crusher 15835 | -4/Waste | Spotted C-40 Crusher 15836 | -4/Waste | EMP discharged 15838 | -4/Waste | Spotted C-40 Crusher 15842 | -4/Waste | Discovered new exit (range 15) 15846 | -4/Waste | Identified exit to Factory 15847 | -4/Waste | Entered Factory 15921 | -4/Factory | Spotted B-86 Titan 15953 | -4/Factory | Destroyed 7 combat bots 15974 | -4/Factory | Spotted B-86 Titan 15977 | -4/Factory | Found Imp. Powered Armor 15979 | -4/Factory | Discovered exit to Research (range 7) 16013 | -4/Factory | Identified exit to Upper Caves 16047 | -4/Factory | Entered Upper Caves 16055 | -4/Upper Caves | Learned Research interactive machine intel 16076 | -4/Upper Caves | Spotted B-86 Titan 16092 | -4/Upper Caves | Attracted the attention of an 0b10 checkpoint 16222 | -4/Upper Caves | Discovered new exit (range 10) 16225 | -4/Upper Caves | Identified exit to Upper Caves 16226 | -4/Upper Caves | Encountered a Warlord checkpoint 16231 | -4/Upper Caves | Learned 12 Research zone layouts 16254 | -4/Upper Caves | Entered another Upper Caves area 16287 | -4/Upper Caves | Encountered a Warlord checkpoint 16386 | -4/Upper Caves | Discovered new exit (range 14) 16390 | -4/Upper Caves | Identified exit to Warlord 16390 | -4/Upper Caves | Entered Warlord 16403 | -4/Warlord | System corruption cleaned by Quarantine Array 16414 | -4/Warlord | Received a Watcher feed algorithm from an ecstatic Tinkerer 16429 | -4/Warlord | Visited the Vortex Lab 16451 | -4/Warlord | Warlord's base attacked by MAIN.C 16577 | -4/Warlord | Met Warlord 16668 | -4/Warlord | Warlord forces counterattacked 16706 | -4/Warlord | Destroyed 9 combat bots 16752 | -4/Warlord | Discovered new exit (range 13) 16755 | -4/Warlord | Identified exit to Proximity Caves 16755 | -4/Warlord | Entered Proximity Caves 16786 | -3/Proximity Caves | Attracted the attention of an 0b10 checkpoint 16900 | -3/Proximity Caves | Found DCF Scrap (14 items) 16936 | -3/Proximity Caves | Discovered exit to Research (range 15) 16939 | -3/Proximity Caves | Entered Research 16939 | -3/Research | Evolved 2 slots: Propulsion x1, Utility x1 16940 | -3/Research | Identified exit to Armory 16940 | -3/Research | Identified exit to Testing 16941 | -3/Research | Loaded intel: 41 interactive machine locations 16992 | -3/Research | Spotted B-86 Titan 17038 | -3/Research | Lost 7 parts (1p1n4u1w) 17093 | -3/Research | Entered Armory 17123 | -3/Armory | Lost 3 parts (1p2n) 17342 | -3/Armory | Fabricated Adv. Trap Extractor (x2) 17411 | -3/Armory | Discovered new exit (range 13) 17416 | -3/Armory | Identified exit to Research 17426 | -3/Armory | Identified Transdimensional Reconstructor 17426 | -3/Armory | Warped through subspace to slip node 17426 | -3/Armory | Discovered new exit (range 1) 17426 | -3/Armory | Identified exit to Lab 17427 | -3/Armory | Entered Lab 17427 | -3/Lab | Discovered exit to Research (range 9) 17431 | -3/Lab | Hidden lab's door opened automatically 17431 | -3/Lab | Sensor layout match revealed 17432 | -3/Lab | Gained access to the hidden lab's interior 17694 | -3/Lab | Found Alien Artifact 17694 | -3/Lab | Identified Integrated Dissipator 17694 | -3/Lab | Installed Integrated Dissipator, increased core heat dissipation (+20) 17701 | -3/Lab | Found Alien Artifact 17701 | -3/Lab | Identified Core Expander 17701 | -3/Lab | Installed Core Expander, added new Weapon slot 17707 | -3/Lab | Found Transdimensional Reconstructor 17719 | -3/Lab | Found Prototype Energy Cannon 17719 | -3/Lab | Identified Potential Cannon 17721 | -3/Lab | Found Prototype Energy Gun 17721 | -3/Lab | Identified Hyp. EM Gauss Rifle 17724 | -3/Lab | Found Prototype Device 17724 | -3/Lab | Identified AEGIS Remote Shield 17727 | -3/Lab | Found Prototype Hackware 17727 | -3/Lab | Identified Deep Network Scanner 17759 | -3/Lab | Found Alien Artifact 17759 | -3/Lab | Identified Core Reset Matrix 17759 | -3/Lab | Used Core Reset Matrix 17763 | -3/Lab | Discovered exit to Research (range 6) 17766 | -3/Lab | Entered Research 17766 | -2/Research | Warlord forces began assault on 0b10 17766 | -2/Research | Evolved 2 slots: Utility x2 17839 | -2/Research | Identified exit to Quarantine 17876 | -2/Research | Research machine network offline 18007 | -2/Research | Build established: Wizard-Sprinter 18031 | -2/Research | Spotted Striker 18061 | -2/Research | Spotted Executioner 18071 | -2/Research | Spotted Striker 18080 | -2/Research | Met up with Warlord 18127 | -2/Research | Discovered new exit (range 4) 18182 | -2/Research | Spotted Striker 18182 | -2/Research | Spotted Striker 18193 | -2/Research | Borebot progress halted 18220 | -2/Research | Spotted Striker 18226 | -2/Research | Spotted Executioner 18230 | -2/Research | Borebot progress halted 18244 | -2/Research | Spotted Executioner 18250 | -2/Research | Spotted Executioner 18282 | -2/Research | Entered Quarantine 18283 | -2/Quarantine | Detected hypermatrix surge 18283 | -2/Quarantine | Sensed 16 artifacts in vicinity 18312 | -2/Quarantine | Identified exit to Access 18410 | -2/Quarantine | Found Sigix Broadsword 18413 | -2/Quarantine | Cryocooling Duct disabled 18423 | -2/Quarantine | Spotted Fortress 18428 | -2/Quarantine | Ambient heat levels rising (+20) 18428 | -2/Quarantine | Non-combat units ordered to evacuate 18449 | -2/Quarantine | Discovered new exit (range 5) 18450 | -2/Quarantine | Identified exit to Section 7 18450 | -2/Quarantine | Entered Section 7 18451 | -2/Section 7 | Sensed 23 artifacts in vicinity 18462 | -2/Section 7 | Found Integrated Dissipator 18462 | -2/Section 7 | Installed Integrated Dissipator, increased core heat dissipation (+20) 18549 | -2/Section 7 | Spotted S7 Guard 18550 | -2/Section 7 | Found Core Physics Calibrator 18571 | -2/Section 7 | Found Integrated Mediator 18571 | -2/Section 7 | Installed Integrated Mediator, increased core attachment efficiency 18601 | -2/Section 7 | Found Integrity Redistributor 18628 | -2/Section 7 | Spotted Alpha 7 18629 | -2/Section 7 | Spotted Alpha 7 18632 | -2/Section 7 | Spotted S7 Guard 18653 | -2/Section 7 | Spotted B-90 Cyclops 18668 | -2/Section 7 | Found Microwarp Drive 18691 | -2/Section 7 | Spotted B-99 Colossus 18700 | -2/Section 7 | Search patrols dispatched 18706 | -2/Section 7 | Found Integrated Reactor 18706 | -2/Section 7 | Installed Integrated Reactor, increased core energy generation (+10) 18707 | -2/Section 7 | Found Integrated Reactor 18707 | -2/Section 7 | Installed Integrated Reactor, increased core energy generation (+10) 18709 | -2/Section 7 | Found Integrated Reactor 18709 | -2/Section 7 | Installed Integrated Reactor, increased core energy generation (+10) 18721 | -2/Section 7 | Found LRC Storage 18721 | -2/Section 7 | Installed LRC Storage, increased inventory capacity (+2) 18724 | -2/Section 7 | Found LRC Armor 18724 | -2/Section 7 | Installed LRC Armor, increased core integrity (+250) 18726 | -2/Section 7 | Found LRC Insulator 18726 | -2/Section 7 | Installed LRC Insulator, gained EM resistance (25) 18791 | -2/Section 7 | Entered Access 18791 | -1/Access | Evolved 2 slots: Power x1, Utility x1 18795 | -1/Access | Spotted B-99 Colossus 18938 | -1/Access | P-80 Master assimilated allied HN-LL1(M) 18977 | -1/Access | Spotted B-99 Colossus 18979 | -1/Access | Build established: Alien-Sprinter 19019 | -1/Access | Spotted B-99 Colossus 19030 | -1/Access | Warped through subspace 19034 | -1/Access | Core integrity fell below 50% 19040 | -1/Access | Emitted hypermatrix ping 19045 | -1/Access | Assembled emerged from beneath the floor 19049 | -1/Access | Assembled emerged from beneath the floor 19061 | -1/Access | Lost 18 parts (3p6n8u1w) 19072 | -1/Access | Assembled emerged from beneath the floor 19086 | -1/Access | Discovered new exit (range 7) 19089 | -1/Access | Identified exit to Surface 19089 | *** | Heading to fleet! Last Messages --------------- 19034_ Slug penetrates Wall. 19034_ Penetrated by Slug. 19037_ Knocked back. 19040_ Emitted hypermatrix ping. 19041_ Detected hypermatrix ping. 19047_ Slug penetrates Wall. 19048_ ALERT: Hostile activity reported, dispatching reinforcements to area. 19049_ Assembled emerge from beneath the floor. 19057_ Detected hypermatrix ping. 19060_ as-68604 destroyed. 19072_ Assembled emerge from beneath the floor. 19085_ Connecting with Terminal... >>Open(Door) Sealed Barrier opened. 19085_ ALERT: Suspicious activity at Terminal A001. Dispatching Investigation squad. 19086_ The Access Shell folds into the floor. 19086_ EXIT=FOUND 19089_ EXIT=IDENTIFIED: SURFACE Map ----- +----------------------------------------------------+ | ?????????????????????????????????????????????????? | | ?????????????????????????????????????????????????? | | ?????????????????????????????????????????????????? | | ?????????????????????????????????????????????????? | | ?????????????????????????????????????????????????? | | ?????????????????????????????????????????????????? | | ?????????????????????????????????????????????????? | | ?????????????????????????????????????????????????? | | ?????????????????????????????????????????????????? | | ?????????????????????????????????????????????????? | | ?????????????????????????????????????????????????? | | ?????????????????????????????????????????????????? | | ?????????????????????????????????????????????????? | | ?????????????????????????????????????? ?????????? | | ?????????????????????????????????????? #????????? | | ?????????????????????????????????????? #????????? | | ?????????????????????????????????????? #????????? | | ?????????????????????????????????????? #????????? | | ?????????????????????????????????????? #????????? | | ?????????????????????????????###?????? #????????? | | ????????????????????########## ####### #????????? | | ?????????#??????????" #????????? | | ??????? ???? ???" g #????????? | | #####""#"" "??" #????????? | | "??" k #????????? | | = "??" "@ g #????????? | | [! "??" "" a #????????? | | %[% "??" a #????????? | | #########" ???" a #????????? | | # #? ???" """ """a #????????? | | # ! #??? ????" """T""" #????????? | | # #?????##????########## ####### #????????? | | # #????????????????????###?????# #????????? | | # !! #????????????????????????????# #????##+## | | # ! #????????????????????????????# #?? | | # ???#?????????????????????????# # | | # ?????????????######????????????# + | | ###+####???????????# ############## # [[[ | | #???????????# #?? [[! | | ############# #????[! | | ####### ########?????? | | ############## ##?????# #??????????????? | | ######### """"" ## #??????# #???????????????? | | #???????# ""Y"" ## #??????# #???????????????? | | #???????# *## #??????# #???????????????? | | #???????#% ## #??????# #???????????????? | | #???????# * ## #?????## ##??????????????? | | #????????? ] ## ##????# #########??????? | | ############""##+#"" #????# | | % % % % #????# | +----------------------------------------------------+ Best States ------------- Heat Dissipation 92 Energy Generation 95 Energy Capacity 395 Matter Stores 300 Matter Capacity 600 Sight Range 20 Robot Scan Range 18 Terrain Scan Range 14 Terrain Scan Density 210 ECM Strength 1 Jamming Range 16 Cloak Strength 4 Additional Mass Support 16 Corruption Block 15 Armor Coverage 450 Resistance: EM 25 Point Defense Rating 240 Melee Speed Boost 20 Phase Shifting 10 Evasion (%) 86 Target Analysis 6 Recoil Reduction 5 Offensive Hacking 49 Defensive Hacking 14 Authchip Count 2 Trap Extractor Capacity 8 Item Schematics ----------------- Nanosword | -2/Research | Hacked Enh. Nova Cannon | -2/Quarantine | Hacked Robot Schematics ------------------ None Fabricated ------------ Adv. Cooling System | x2 | -7/Factory | Preloaded Imp. Flight Unit | x1 | -7/Factory Imp. Flight Unit | x1 | -7/Factory Imp. Flight Unit | x1 | -6/Factory | Authchip Cld. VTOL Module | x1 | -6/Factory | Authchip Cld. VTOL Module | x1 | -6/Factory Cld. VTOL Module | x1 | -5/Factory Q-thruster | x2 | -5/Factory | Preloaded Cld. VTOL Module | x1 | -4/Factory Adv. Trap Extractor | x2 | -3/Armory Alien Tech Used ----------------- Integrated Reactor Transdimensional Reconstructor Integrated Dissipator Core Expander Core Reset Matrix Core Physics Calibrator Integrated Mediator Microwarp Drive LRC Storage LRC Armor LRC Insulator Sigix Broadsword Achievements -------------- Great Explorer Production Line Challenges ------------ None Game ------ Seed ImprinterCoolingCanceller Manual? 0 Play Time 05:33:40 Cumulative 211.5 hours Start 2024.11.29 @ 20:09:13 End 2024.11.30 @ 22:25:01 Sessions 5 Manual Loads 0 Difficulty Rogue Special Mode None Game No. 103 Rogue 82 Adventurer 21 Explorer 0 Win Type 2 Total 10 Types 7/0/2/1/0/0/0/0/0 Lore% 45 Gallery% 68 Achievement% 59 Wizard Run 0 Options --------- Layout 1 ASCII 0 Keyboard 0 Movement Mouse Keybinds 0 Fullscreen 2 Font 32/SmallcapsGlow Map View 77x35 Zoom Use 0% Tactical HUD 1 Map Filters NONE Filters NONE Steam 1 RUN: 5590829a-f7e7-4c4f-acfd-e0199f74682d